Workbook

Sheet Regional Highway
A1: SPOT ID | B1: Project Category | C1: TIP | D1: Route | E1: From / Cross Street | F1: To | G1: Description | H1: Specific Improvement Type | I1: Cost to NCDOT | J1: All MPOs/RPOs | K1: All Counties | M1: Regional Impact Quantitative Score (Out of 70) | O1: Safety Regional Score (30%) | P1: Cost Effectiveness Regional Score (20%) | Q1: Transportation Plan Consistency Regional Score (20%) | R1: Corridor Continuity Regional Score (10%) | S1: Project Feasibility Regional Score (20%) | T1: Total Methodology Score X 15% | U1: Regional Score + Total Methodology Score | W1: Draft Division Assigned Points | X1: Comments
A2: H090922 | B2: Regional Impact | D2: US-13 Berkeley Boulevard | E2: Central Heights Road/Royall Avenue | G2: Realignment of Central Heights Road at the intersection of Berkeley Boulevard and Royall Avenue | H2: 10 - Improve Intersection | I2: 1395000 | J2: Goldsboro Urban Area MPO | K2: Wayne | M2: 42.163192 | O2: 30 | P2: 20 | Q2: 20 | R2: 10 | S2: 20 | T2: =SUM(O2:S2)*0.15 -> 15 | U2: =M2+T2 -> 57.163192 | W2: 100
A3: H129617 | B3: Statewide Mobility | C3: R-2829 | D3: NC-540 New Route - Eastern Wake Freeway (Toll) | E3: I-40 | F3: US 64/264 Bypass | G3: Construct Freeway on New Location (toll) | H3: 5 - Construct Roadway on New Location | I3: 284784000 | J3: Capital Area MPO, , | K3: Wake, Johnston, , | M3: 35.89349246 | O3: 20 | P3: 20 | Q3: 20 | R3: 10 | S3: 0 | T3: 10.5 | U3: 46.39349246 | X3: Too costly at Regional Level
A4: H090227-A | B4: Regional Impact | C4: R-3410 | D4: NC-42 | E4: NC 50 | F4: US 70 Bypass | G4: Widen to Multi-Lanes | H4: 1 - Widen Existing Roadway | I4: 56209000 | J4: Capital Area MPO | K4: Johnston | M4: 31.6123928 | O4: 30 | P4: 13.33 | Q4: 20 | R4: 10 | S4: 20 | T4: 13.9995 | U4: 45.6118928 | W4: 100
A5: H090227-B | B5: Regional Impact | C5: R-3410 | D5: NC-42 | E5: US 70 Bypass | F5: US 70 Business | G5: Widen to Multi-Lanes | H5: 1 - Widen Existing Roadway | I5: 35019000 | J5: Capital Area MPO | K5: Johnston | M5: 31.79836519 | O5: 20 | P5: 13.33 | Q5: 20 | R5: 10 | S5: 20 | T5: 12.4995 | U5: 44.29786519 | W5: 100
A6: H140752 | B6: Regional Impact | D6: US-70 , NC-50 | E6: US 401 | F6: NC 42 | G6: Widen existing roadway from 4 to 6 lanes. | H6: 1 - Widen Existing Roadway | I6: 54642000 | J6: Capital Area MPO, , | K6: Wake, Johnston, , | M6: 28.94449576 | O6: 30 | P6: 20 | Q6: 20 | R6: 10 | S6: 20 | T6: 15 | U6: 43.94449576 | X6: Not scored by CAMPO
A7: H090262-B | B7: Regional Impact | C7: R-3825B | D7: NC-42 | E7: East of SR 1902 (Glen Laurel Road) | F7: SR 1003 (Buffaloe Road) | G7: Widen to Multi-Lanes | H7: 1 - Widen Existing Roadway | I7: 20300000 | J7: Capital Area MPO | K7: Johnston | M7: 29.7191562 | O7: 20 | P7: 20 | Q7: 20 | R7: 10 | S7: 20 | T7: 13.5 | U7: 43.2191562 | X7: Scored in Division Level
A8: H090743 | B8: Regional Impact | D8: NC-125 | E8: I-95 | F8: Old Farm Road | G8: Feasibility Study For the Widening of NC 125 from I-95 to Old Farm Road in Roanoke Rapids. | H8: 1 - Widen Existing Roadway | I8: 20526000 | J8: Peanut Belt RPO | K8: Halifax | M8: 31.05628852 | O8: 30 | P8: 6.67 | Q8: 20 | R8: 0 | S8: 20 | T8: 11.5005 | U8: 42.55678852 | W8: 100
A9: H090388 | B9: Regional Impact | C9: U-3330 | D9: US-301 Wesleyan Blvd | E9: NC 43/48 (Benvenue Road) | F9: SR 1836 (May Drive) | G9: Add Additional Lanes | H9: 4 - Upgrade Arterial to Superstreet | I9: 32650000 | J9: Rocky Mount Urban Area MPO | K9: Nash | M9: 27.75590785 | O9: 30 | P9: 13.33 | Q9: 20 | R9: 10 | S9: 20 | T9: 13.9995 | U9: 41.75540785 | W9: 100
A10: H090872 | B10: Regional Impact | D10: US-70-BUS- | E10: I-95 | F10: US 301 | G10: Pavement Rehabilitation on US 70B from I-95 to US 301 | H10: 16 - Modernize Roadway | I10: 1368000 | J10: Upper Coastal Plain RPO | K10: Johnston | M10: 25.26482597 | O10: 30 | P10: 20 | Q10: 20 | R10: 0 | S10: 20 | T10: 13.5 | U10: 38.76482597 | X10: Address with contract resurfacing
A11: H140389 | B11: Regional Impact | D11: US-301 , NC-96 , NC-39 | E11: Booker Dairy Rd | F11: Ricks Rd | G11: This road is currently nearing capacity. The addition of a median will allow for better controlled access which will provide more mobility. Converting the road to 4 lanes with median and sidewalks will also provide safe routes for pedestrians that currently are creating trails along side the road. | H11: 4 - Upgrade Arterial to Superstreet | I11: 13317000 | J11: Upper Coastal Plain RPO | K11: Johnston | M11: 23.6888581 | O11: 30 | P11: 20 | Q11: 20 | R11: 10 | S11: 20 | T11: 15 | U11: 38.6888581 | W11: 100
A12: H090044-BB | B12: Statewide Mobility | C12: I-5111BB | D12: I-40 | E12: US 70 Bypass | F12: NC 42 | G12: Add Additional Lanes. | H12: 1 - Widen Existing Roadway | I12: 36200000 | J12: Capital Area MPO | K12: Johnston | M12: 23.29995551 | O12: 30 | P12: 20 | Q12: 20 | R12: 10 | S12: 20 | T12: 15 | U12: 38.29995551 | W12: 100 | X12: Close gap on I-40
A13: H090417 | B13: Regional Impact | C13: U-3464 | D13: US-301 , NC-96 | E13: NC 96 | F13: SR 1007 (Brogden Road) | G13: NC 96 to SR 1007 (Brogden Road). Widen to Multi-Lanes. | H13: 1 - Widen Existing Roadway | I13: 31956000 | J13: Upper Coastal Plain RPO | K13: Johnston | M13: 28.00598804 | O13: 20 | P13: 13.33 | Q13: 20 | R13: 10 | S13: 0 | T13: 9.4995 | U13: 37.50548804 | W13: 100
A14: H090686 | B14: Statewide Mobility | D14: US-117 | E14: SR 1135 (Country Club Road) | G14: Construct interchange on US 117 at Country Club Road. No Row Costs, Division 4 Reports That NCDOT Has Already Acquired the Necessary Right-of-Way | H14: 7 - Upgrade At-grade Intersection to Interchange or Grade Separation | I14: 11640000 | J14: East Carolina RPO | K14: Wayne | M14: 22.27583477 | O14: 30 | P14: 20 | Q14: 20 | R14: 10 | S14: 20 | T14: 15 | U14: 37.27583477 | X14: Scored in Division Level
A15: H090971 | B15: Regional Impact | D15: US-13 | E15: SR 1705 (Hood Swamp Road) | F15: SR 1572 (Saulston Road) | G15: Widen to 4-Lanes with a Median | H15: 1 - Widen Existing Roadway | I15: 13352000 | J15: Goldsboro Urban Area MPO | K15: Wayne | M15: 22.99030996 | O15: 30 | P15: 13.33 | Q15: 20 | R15: 10 | S15: 20 | T15: 13.9995 | U15: 36.98980996 | W15: 100
A16: H090461 | B16: Regional Impact | C16: U-4407 | D16: US-70-BUS-Ash Street | E16: SR 1579 (Berkeley Boulevard) | F16: US 70 Bypass | G16: SR 1579 (Berkeley Boulevard) to US 70 Bypass. Widen to Multi-Lanes. | H16: 1 - Widen Existing Roadway | I16: 20091000 | J16: Goldsboro Urban Area MPO | K16: Wayne | M16: 28.68587263 | O16: 20 | P16: 6.67 | Q16: 20 | R16: 0 | S16: 0 | T16: 7.0005 | U16: 35.68637263 | W16: 100
A17: H090428-B | B17: Regional Impact | C17: U-3609B | D17: US-13 Berkeley Boulevard | E17: SR 1003 (New Hope Road) | F17: North of SR 1705 (Hood Swamp Road) | G17: Widen to Multi-Lanes | H17: 1 - Widen Existing Roadway | I17: 11650000 | J17: Goldsboro Urban Area MPO | K17: Wayne | M17: 23.0532409 | O17: 20 | P17: 13.33 | Q17: 20 | R17: 10 | S17: 20 | T17: 12.4995 | U17: 35.5527409 | W17: 100
A18: H111019 | B18: Regional Impact | D18: NC-50 | E18: Timber Drive | F18: NC 42 | G18: Widen to Four Lanes with a Median | H18: 1 - Widen Existing Roadway | I18: 57332000 | J18: Capital Area MPO, , | K18: Wake, Johnston, , | M18: 21.90800321 | O18: 30 | P18: 13.33 | Q18: 20 | R18: 0 | S18: 20 | T18: 12.4995 | U18: 34.40750321 | X18: Not scored by CAMPO
A19: H090931 | B19: Statewide Mobility | D19: I-40 | E19: NC 42 | F19: NC 210 | G19: Widen to 6 Lanes | H19: 1 - Widen Existing Roadway | I19: 78409000 | J19: Capital Area MPO | K19: Johnston | M19: 19.28634604 | O19: 30 | P19: 20 | Q19: 20 | R19: 10 | S19: 20 | T19: 15 | U19: 34.28634604 | X19: Scored in Statewide
A20: H090357 | B20: Regional Impact | C20: U-2714 | D20: US-117-ALT- | E20: US 70 Bypass | F20: SR 1306 (Fedelon Trail ) | G20: Widen Roadway and/or Make Safety Improvements from SR 1306 (Fedelon Trail) to Proposed US 70 Bypass. | H20: 1 - Widen Existing Roadway | I20: 20947000 | J20: Goldsboro Urban Area MPO | K20: Wayne | M20: 26.7380249 | O20: 10 | P20: 0 | Q20: 20 | R20: 0 | S20: 20 | T20: 7.5 | U20: 34.2380249 | W20: 100
A21: H141676 | B21: Statewide Mobility | C21: W-5600 | D21: US-70 | E21: SR 1913 (Wilson's Mills Road) | G21: Upgrade at grade intersection to interchange | H21: 7 - Upgrade At-grade Intersection to Interchange or Grade Separation | I21: 11315000 | J21: Upper Coastal Plain RPO | K21: Johnston | M21: 18.05788633 | O21: 30 | P21: 20 | Q21: 20 | R21: 10 | S21: 20 | T21: 15 | U21: 33.05788633 | X21: RPO prefers H141891
A22: H128031 | B22: Statewide Mobility | D22: US-117 | E22: O'Berry Road | G22: Construct interchange. | H22: 7 - Upgrade At-grade Intersection to Interchange or Grade Separation | I22: 8676000 | J22: Goldsboro Urban Area MPO | K22: Wayne | M22: 17.74121075 | O22: 30 | P22: 20 | Q22: 20 | R22: 10 | S22: 20 | T22: 15 | U22: 32.74121075 | X22: Scored in Division Level
A23: H129200-G | B23: Statewide Mobility | D23: I-95 | E23: SR 1002 (Long Branch Road) | F23: I-40 | G23: Widen Roadway to 8 Lanes. | H23: 1 - Widen Existing Roadway | I23: 143388000 | J23: Mid-Carolina RPO, Upper Coastal Plain RPO, | K23: Harnett, Johnston, , | M23: 24.98269532 | O23: 20 | P23: 20 | Q23: 0 | R23: 10 | S23: 0 | T23: 7.5 | U23: 32.48269532 | X23: Too costly at Regional Level
A24: H141265 | B24: Statewide Mobility | D24: US-64 | E24: SR 1003 (Rollesville Rd) at Knightdale Bypass | F24: Martin County Line | G24: Upgrade US 64 to Interstate Standards | H24: 17 - Upgrade Freeway to Interstate Standards | I24: 133958000 | J24: Upper Coastal Plain RPO, Rocky Mount Urban Area MPO, Capital Area MPO | K24: Edgecombe, Nash, Wake, Franklin | M24: 23.00827083 | O24: 20 | P24: 20 | Q24: 0 | R24: 0 | S24: 20 | T24: 9 | U24: 32.00827083 | X24: Too costly at Regional Level
A25: H140979 | B25: Regional Impact | D25: NC-242 | E25: US 301 | F25: I-40 | G25: Widen to 4 lane highway with median and sidewalks (4E Section). Provide a four lane divided cross section for NC 242 North from its junction with US 301 Hwy to its intersection with Interstate 40. The addition of a median will allow for better controlled access which will provide more mobility as the corridor develops in the near future. Recent development and proposed new development in the near future means an increase in AADT thereby creating the need for controlled access for safer mobility. | H25: 1 - Widen Existing Roadway | I25: 23603000 | J25: Upper Coastal Plain RPO | K25: Johnston | M25: 22.53585205 | O25: 20 | P25: 0 | Q25: 20 | R25: 0 | S25: 20 | T25: 9 | U25: 31.53585205 | W25: 100
A26: H141939 | B26: Regional Impact | D26: NC-210 | E26: SR 1162 (Black Creek Road) | G26: Add turn lanes on NC 210 and realign the intersection of SR 1162 (Black Creek Rd) | H26: 10 - Improve Intersection | I26: 465000 | J26: Upper Coastal Plain RPO | K26: Johnston | M26: 20.09711629 | O26: 10 | P26: 20 | Q26: 20 | R26: 0 | S26: 20 | T26: 10.5 | U26: 30.59711629 | X26: Scored at Division Level
A27: H090148 | B27: Statewide Mobility | C27: R-2581 | D27: US-158 , NC-903 | E27: SR 1405 (Roanoke Chapel Road) East of Littleton | F27: I-95 South of Roanoke Rapids | G27: Widen to Multi-Lanes. | H27: 1 - Widen Existing Roadway | I27: 86400000 | J27: Peanut Belt RPO | K27: Halifax | M27: 14.26758295 | O27: 30 | P27: 13.33 | Q27: 20 | R27: 10 | S27: 20 | T27: 13.9995 | U27: 28.26708295 | X27: Too costly at Regional Level
A28: H111256 | B28: Statewide Mobility | D28: US-70 | E28: US 70 Bypass (West Terminus, East of SR 1408) | F28: SR 1229 (to Wayne County Line) | G28: Improve Existing US 70 to Freeway Standards from the West End of the US 70 Bypass to the Wayne/Johnston County Line | H28: 2 - Upgrade Arterial to Freeway/Expressway | I28: 65322000 | J28: East Carolina RPO, Goldsboro Urban Area MPO | K28: Wayne | M28: 16.76090201 | O28: 30 | P28: 13.33 | Q28: 0 | R28: 10 | S28: 20 | T28: 10.9995 | U28: 27.76040201 | X28: Too costly at Regional Level
A29: H141828 | B29: Regional Impact | D29: NC-42 | E29: SR 1003 (Buffalo Road) | F29: CAMPO/Upper Coastal Plain RPO Boundary at the Wilson County Line | G29: Modernize roadway and operational improvements including widening lanes, improving shoulders, passing lanes, turning lanes, and intersection improvements. (Moving Ahead Project) | H29: 16 - Modernize Roadway | I29: 12295000 | J29: Capital Area MPO, Upper Coastal Plain RPO | K29: Johnston | M29: 17.17101123 | O29: 20 | P29: 20 | Q29: 0 | R29: 10 | S29: 20 | T29: 10.5 | U29: 27.67101123 | W29: 100
A30: H141587 | B30: Regional Impact | D30: NC-97 Atlantic Ave | E30: NC 97 | F30: NC 97 | G30: Extend NC 97 on new location to Tanner Road | H30: 5 - Construct Roadway on New Location | I30: 1894000 | J30: Rocky Mount Urban Area MPO | K30: Edgecombe | M30: 16.73569833 | O30: 30 | P30: 0 | Q30: 20 | R30: 0 | S30: 20 | T30: 10.5 | U30: 27.23569833 | W30: 100
A31: H111275 | B31: Regional Impact | D31: NC-42 | E31: US 264/ I-795 | F31: Forest Hills Rd. (SR 1165) | G31: Upgrade This Corridor to a Four-Lane Divided Boulevard with a Raised 23-Foot Median with Bicycle and Pedestrian Lanes, and Curb and Gutter. Realignment Is Proposed, As Part of This Project at NC 42/ Old Raleigh Rd. (SR 1136) and Airport Blvd. (SR 1158) Due to the Proximity of This intersection to Several Schools in the Area. | H31: 11 - Access Management | I31: 14578000 | J31: Upper Coastal Plain RPO | K31: Wilson | M31: 14.73859117 | O31: 10 | P31: 20 | Q31: 20 | R31: 10 | S31: 20 | T31: 12 | U31: 26.73859117 | W31: 100
A32: H111266 | B32: Regional Impact | D32: US-264 | E32: US 264 | F32: US 264 Alt./NC 42/ Ward Blvd. | G32: Upgrading US 264 Alt. from Airport Blvd. (SR 1320) to US 264 Alt./NC 42/Ward Blvd. (SR 1516) to a Four-Lane Divided Boulevard witha23 Foot Raised Landscaped Median, Sidewalks, and Wide Outside Lanes with Accommodations For Bikes. the Project Proposal For US264Alt. from US 264 Bypass to Airport Blvd. (SR 1320) includes Measure to Limit Access, Such As a Superstreet Design with Single Phased Lights For Protected Left Turns, Right-ins, Right-Outs, and Limited Driveways. | H32: 4 - Upgrade Arterial to Superstreet | I32: 18126000 | J32: Upper Coastal Plain RPO | K32: Wilson | M32: 15.70052364 | O32: 10 | P32: 20 | Q32: 20 | R32: 0 | S32: 20 | T32: 10.5 | U32: 26.20052364 | W32: 100
A33: H111059 | B33: Regional Impact | D33: NC-48 | E33: Red Oak / Battleboro Road | F33: NC 4 | G33: Widen from 2-Lanes to 4-Lane Divided. | H33: 1 - Widen Existing Roadway | I33: 17409000 | J33: Rocky Mount Urban Area MPO | K33: Nash | M33: 16.75874481 | O33: 20 | P33: 0 | Q33: 20 | R33: 0 | S33: 20 | T33: 9 | U33: 25.75874481 | W33: 100
A34: H090346-C | B34: Regional Impact | C34: U-2561C | D34: NC-43 | E34: SR 1613 (Woodruff Avenue) | F34: I-95 | G34: SR 1616 (Country Club Road) to I-95. Widen to Multi-Lanes with Curb and Gutter. Section C: SR 1613 (Woodruff Avenue) to I-95. | H34: 1 - Widen Existing Roadway | I34: 18584000 | J34: Upper Coastal Plain RPO | K34: Nash | M34: 16.63851552 | O34: 10 | P34: 0 | Q34: 20 | R34: 10 | S34: 20 | T34: =SUM(O34:S34)*0.15 -> 9 | U34: =M34+T34 -> 25.63851552
A35: H111281 | B35: Regional Impact | D35: US-301 | E35: NC 42 | F35: US 264 | G35: Upgrade This Facility to a Four-Lane Divided Boulevard with a 23-Foot Raised Landscaped Median, Sidewalks, and Wide Outside Lanes with Accommodations For Bikes. | H35: 11 - Access Management | I35: 53507000 | J35: Upper Coastal Plain RPO | K35: Wilson | M35: 13.91863217 | O35: 10 | P35: 13.33 | Q35: 20 | R35: 10 | S35: 20 | T35: 10.9995 | U35: 24.91813217 | X35: Too Costly at Regional Level
A36: H111270 | B36: Regional Impact | D36: NC-58 | E36: NC 42/Ward Blvd. (SR 1516) | F36: Forest Hills Rd. (SR 1165) | G36: Upgrading NC 58 Between NC 42/Ward Blvd. (SR 1516) and Forest Hills Rd. (SR 1165) to a Five-Lane Facility with Sidewalks and to Provide Accommodations For Bike to Correspond to Proposed Bicycle and Pedestrian Improvements. | H36: 1 - Widen Existing Roadway | I36: 1003000 | J36: Upper Coastal Plain RPO | K36: Wilson | M36: 15.14138166 | O36: 30 | P36: 13.33 | Q36: 20 | R36: 0 | S36: 0 | T36: 9.4995 | U36: 24.64088166 | W36: 100
A37: H129202 | B37: Statewide Mobility | D37: I-95 | E37: I-40 | F37: North of NC 222 | G37: Widen Roadway to 6 Lanes. | H37: 1 - Widen Existing Roadway | I37: 324342000 | J37: Upper Coastal Plain RPO | K37: Johnston | M37: 15.62177671 | O37: 20 | P37: 20 | Q37: 20 | R37: 0 | S37: 0 | T37: 9 | U37: 24.62177671 | X37: Too Costly at Regional Level
A38: H090383 | B38: Statewide Mobility | C38: U-3125 | D38: US-117 | E38: NC 55 | F38: US 117 Relocation South of US 70 | G38: NC 55 to US 117 Relocation South of US 70. Upgrade Roadway to Freeway Standards, Part on New Location | H38: 6 - Widen Existing Roadway and Construct Part on New Location | I38: 230209000 | J38: Goldsboro Urban Area MPO, East Carolina RPO | K38: Wayne | M38: 16.76083866 | O38: 20 | P38: 6.67 | Q38: 20 | R38: 0 | S38: 0 | T38: 7.0005 | U38: 23.76133866 | X38: Too Costly at Regional Level
A39: H090329 | B39: Regional Impact | C39: U-2419 | D39: NC-48 | E39: Roanoke Avenue in Halifax County | F39: NC 46 in Gaston in Northampton County | G39: Roanoke Avenue in Halifax County to NC 46 in Gaston in Northampton County. Widen to Multi-Lanes. | H39: 1 - Widen Existing Roadway | I39: 30987000 | J39: Peanut Belt RPO, , | K39: Northampton, Halifax, , | M39: 20.71964835 | O39: 0 | P39: 0 | Q39: 0 | R39: 0 | S39: 20 | T39: 3 | U39: 23.71964835 | X39: Not scored in Div. 1
A40: H111282 | B40: Regional Impact | D40: - Wilson Signal System | E40: Wilson City Limits | F40: Wilson City Limits | G40: Construct Citywide Signal System in City of Wilson | H40: 13 - Citywide Signal System | I40: 5000000 | J40: Upper Coastal Plain RPO | K40: Wilson | M40: 12.54954371 | O40: 10 | P40: 20 | Q40: 20 | R40: 0 | S40: 20 | T40: 10.5 | U40: 23.04954371 | W40: 100
A41: H141671 | B41: Statewide Mobility | C41: W-5600 | D41: US-70 | E41: SR 1501 (Swift Creek Road) | G41: Upgrade at grade intersection to an interchange | H41: 7 - Upgrade At-grade Intersection to Interchange or Grade Separation | I41: 11315000 | J41: Upper Coastal Plain RPO | K41: Johnston | M41: 10.21847221 | O41: 10 | P41: 20 | Q41: 20 | R41: 10 | S41: 20 | T41: 12 | U41: 22.21847221 | X41: RPO prefers H141891
A42: H141827 | B42: Regional Impact | D42: US-258 | E42: SR 1100 (Douglas Hill Farm Road) | F42: Edgecombe County Line | G42: Currently a 2-lane major thoroughfare, this project recommends to widen to 24 feet w/ paved shoulders and turn lanes where necessary. This is recommended as a continuity from recommendations in Edgecombe County CTP and the Northampton County CTP. | H42: 1 - Widen Existing Roadway | I42: 6793000 | J42: Peanut Belt RPO | K42: Halifax | M42: 10.93076224 | O42: 20 | P42: 13.33 | Q42: 20 | R42: 0 | S42: 20 | T42: 10.9995 | U42: 21.93026224 | W42: 100
A43: H141891 | B43: Statewide Mobility | C43: W-5600 | D43: US-70 | E43: US 70 Business | F43: Neuse River | G43: Upgrade to freeway improving SR 1501 (Swift Creek Rd)/US 70 and SR 1913 (Wilson's Mills Rd)/US 70 at grade intersections to interchanges | H43: 2 - Upgrade Arterial to Freeway/Expressway | I43: 30913000 | J43: Upper Coastal Plain RPO | K43: Johnston | M43: 8.351864805 | O43: 20 | P43: 20 | Q43: 20 | R43: 10 | S43: 20 | T43: 13.5 | U43: 21.8518648 | W43: 100 | X43: Preferred by town
A44: H111041 | B44: Regional Impact | D44: NC-48 | E44: Homestead Road | F44: Red Oak / Battleboro Road | G44: Widen NC 48 from 2 Lane Road to 4 Lane Divided Highway. | H44: 1 - Widen Existing Roadway | I44: 18427000 | J44: Rocky Mount Urban Area MPO | K44: Nash | M44: 13.29838453 | O44: 30 | P44: 6.67 | Q44: 20 | R44: 0 | S44: 0 | T44: 8.5005 | U44: 21.79888453
A45: H129206 | B45: Statewide Mobility | D45: I-95 | E45: North of NC 481 | F45: Halifax/Northampton County Line | G45: Widen Roadway to 6 Lanes. | H45: 1 - Widen Existing Roadway | I45: 436486000 | J45: Peanut Belt RPO | K45: Halifax | M45: 16.73762596 | O45: 20 | P45: 13.33 | Q45: 0 | R45: 0 | S45: 0 | T45: 4.9995 | U45: 21.73712596
A46: H129205 | B46: Statewide Mobility | D46: I-95 | E46: South of SR 1604 | F46: North of NC 481 | G46: Widen Roadway to 6 Lanes. | H46: 1 - Widen Existing Roadway | I46: 348801000 | J46: Upper Coastal Plain RPO, Peanut Belt RPO, Rocky Mount Urban Area MPO | K46: Nash, Halifax | M46: 14.5936965 | O46: 10 | P46: 13.33 | Q46: 20 | R46: 0 | S46: 0 | T46: 6.4995 | U46: 21.0931965
A47: H111213 | B47: Statewide Mobility | D47: US-117 | E47: NC 55 in Mount Olive, NC | F47: I-40 in Sampson County | G47: Improve US 117 to Freeway Standards. Expansion of I-795 South to I-40 | H47: 2 - Upgrade Arterial to Freeway/Expressway | I47: 40356000 | J47: East Carolina RPO, Mid-Carolina RPO, | K47: Duplin, Wayne, Sampson, | M47: 9.467620108 | O47: 10 | P47: 13.33 | Q47: 20 | R47: 10 | S47: 20 | T47: 10.9995 | U47: 20.46712011
A48: H142231 | B48: Statewide Mobility | D48: US-117 | E48: West Main Street | G48: Convert at-grade intersection to grade separation | H48: 7 - Upgrade At-grade Intersection to Interchange or Grade Separation | I48: 2325000 | J48: East Carolina RPO | K48: Wayne | M48: 12.88834208 | O48: 10 | P48: 20 | Q48: 20 | R48: 0 | S48: 0 | T48: 7.5 | U48: 20.38834208
A49: H090224-A | B49: Regional Impact | C49: R-3407A | D49: NC-33 | E49: US 64 in Tarboro | F49: NC 42 at Scott's Crossroads | G49: Widen to Multi-Lanes | H49: 1 - Widen Existing Roadway | I49: 32069000 | J49: Upper Coastal Plain RPO | K49: Edgecombe | M49: 10.92290571 | O49: 20 | P49: 0 | Q49: 20 | R49: 0 | S49: 20 | T49: 9 | U49: 19.92290571
A50: H141835 | B50: Regional Impact | D50: US-301 | E50: NC 561 | F50: White Hill Road | G50: Currently a 2-lane major thoroughfare running through Halifax, which serves as the county seat, higher levels morning and afternoon traffic are experienced due to workers moving through the area. It is recommended to widen to 24 feet w/ paved shoulders and turn lanes at all major intersections from NC 561 to White Hill Road. This is recommended as mobility improvement through Halifax with improved connectivity through county. | H50: 1 - Widen Existing Roadway | I50: 13108000 | J50: Peanut Belt RPO | K50: Halifax | M50: 7.504867125 | O50: 10 | P50: 13.33 | Q50: 20 | R50: 10 | S50: 20 | T50: 10.9995 | U50: 18.50436713
A51: H129203 | B51: Statewide Mobility | D51: I-95 | E51: North of NC 222 | F51: North SR 1001 | G51: Widen Roadway to 6 Lanes. | H51: 1 - Widen Existing Roadway | I51: 255327000 | J51: Upper Coastal Plain RPO | K51: Wilson | M51: 11.846649 | O51: 10 | P51: 13.33 | Q51: 20 | R51: 0 | S51: 0 | T51: 6.4995 | U51: 18.346149
A52: H090224-B | B52: Regional Impact | C52: R-3407B | D52: NC-33 | E52: NC 42 at Scott's Crossroads | F52: NC 222 at Belvoir Crossroads | G52: Widen to Multi-Lanes | H52: 1 - Widen Existing Roadway | I52: 43200000 | J52: Mid-East RPO, Upper Coastal Plain RPO, | K52: Pitt, Edgecombe, , | M52: 12.805978 | O52: 10 | P52: 6.67 | Q52: 0 | R52: 0 | S52: 20 | T52: 5.5005 | U52: 18.306478
A53: H090217 | B53: Regional Impact | C53: R-3308 | D53: US-258 | E53: Crescent Road in Kinston in Lenoir County | F53: US 64 at Tarboro in Edgecombe County | G53: Crescent Road in Kinston in Lenoir County to US 64 at Tarboro in Edgecombe County. Multi-Lanes on New Location. | H53: 5 - Construct Roadway on New Location | I53: 717536000 | J53: East Carolina RPO, Upper Coastal Plain RPO, Mid-East RPO | K53: Greene, Edgecombe, Lenoir, Pitt | M53: 15.19561762 | O53: 20 | P53: 0 | Q53: 0 | R53: 0 | S53: 0 | T53: 3 | U53: 18.19561762
A54: H090206 | B54: Regional Impact | C54: R-3102 | D54: NC-58 New Route | E54: Kinston | F54: Wilson | G54: Kinston to Wilson. Construct a Freeway on New Location. | H54: 5 - Construct Roadway on New Location | I54: 463923000 | J54: East Carolina RPO, Upper Coastal Plain RPO, | K54: Greene, Wilson, Lenoir, | M54: 14.87090718 | O54: 20 | P54: 0 | Q54: 0 | R54: 0 | S54: 0 | T54: 3 | U54: 17.87090718
A55: H129204 | B55: Statewide Mobility | D55: I-95 | E55: North SR 1001 | F55: South of SR 1604 | G55: Widen Roadway to 6 Lanes. | H55: 1 - Widen Existing Roadway | I55: 444862000 | J55: Rocky Mount Urban Area MPO, Upper Coastal Plain RPO | K55: Nash, Wilson | M55: 13.98604815 | O55: 10 | P55: 13.33 | Q55: 0 | R55: 0 | S55: 0 | T55: 3.4995 | U55: 17.48554815
A56: H111268 | B56: Regional Impact | D56: NC-58 | E56: SR 1320 (Airport Blvd) | F56: NC 42/Ward Blvd. (SR 1516) | G56: Upgrading NC 58 Between Airport Blvd. (SR 1320) and NC 42/Ward Blvd. (SR 1516) to a Four-Lane Divided Boulevard with a Raised 23 - Foot Median with Bicycle and Pedestrian Lanes, and Curb and Gutter. | H56: 11 - Access Management | I56: 11103000 | J56: Upper Coastal Plain RPO | K56: Wilson | M56: 11.35897315 | O56: 0 | P56: 20 | Q56: 20 | R56: 0 | S56: 0 | T56: 6 | U56: 17.35897315
A57: H141866 | B57: Regional Impact | D57: NC-58 | E57: E Old Spring Hope Rd | F57: Silver Lake | G57: Widen the existing 2 lane highway to a 4 lane highway beginning at the NC 58 and Old Spring Hope Rd intersection in Nashville proceeding south on the existing alignment approximately 11 miles to the City of Wilson Limits. | H57: 1 - Widen Existing Roadway | I57: 81536000 | J57: Rocky Mount Urban Area MPO, Upper Coastal Plain RPO | K57: Nash, Wilson | M57: 10.89739771 | O57: 20 | P57: 0 | Q57: 0 | R57: 0 | S57: 20 | T57: 6 | U57: 16.89739771
A58: H090154 | B58: Statewide Mobility | C58: R-2587 | D58: US-158 | E58: I-85 in Warren County | F58: SR 1405 East of Littleton in Halifax County | G58: Widen to Multi-Lanes with Bypasses of Norlina, Macon and Littleton on New Location. | H58: 6 - Widen Existing Roadway and Construct Part on New Location | I58: 130625000 | J58: Kerr-Tar RPO, Peanut Belt RPO, | K58: Warren, Halifax, , | M58: 8.851545832 | O58: 0 | P58: 0 | Q58: 20 | R58: 10 | S58: 20 | T58: 7.5 | U58: 16.35154583
A59: H111039 | B59: Regional Impact | D59: US-64-BUS- | E59: Western Ave | F59: Cross St | G59: Re-Align the intersection of Western Avenue and Cross Street in the town of Nashville to Eliminate the offset. | H59: 10 - Improve Intersection | I59: 1395000 | J59: Rocky Mount Urban Area MPO | K59: Nash | M59: 7.215727835 | O59: 0 | P59: 20 | Q59: 20 | R59: 0 | S59: 20 | T59: 9 | U59: 16.21572784
A60: H111279 | B60: Regional Impact | D60: US-70 | E60: US 301 | F60: I-95 | G60: Provide a 4-Lane Divided Cross Section For This Facility. the Addition of a Median Will Allow For Better Access Control, thereby Providing Higher Mobility For the Facility. | H60: 11 - Access Management | I60: 8775000 | J60: Upper Coastal Plain RPO | K60: Johnston | M60: 7.294702269 | O60: 0 | P60: 13.33 | Q60: 20 | R60: 0 | S60: 20 | T60: 7.9995 | U60: 15.29420227
A61: H090470 | B61: Regional Impact | C61: U-4424 | D61: NC-111 Wilson Street | E61: US 64 Alternate (Western Boulevard) | F61: NC 122 (Mcnair Road) | G61: Widen to Three Lanes | H61: 1 - Widen Existing Roadway | I61: 9900000 | J61: Upper Coastal Plain RPO | K61: Edgecombe | M61: 5.316018602 | O61: 0 | P61: 13.33 | Q61: 20 | R61: 0 | S61: 20 | T61: 7.9995 | U61: 13.3155186
A62: H090182 | B62: Regional Impact | C62: R-2700 | D62: NC-11 | E62: US 64 Relocation North of Bethel | F62: NC 903 | G62: Widen to Four Lanes with a Bypass of Oak City on New Location. | H62: 6 - Widen Existing Roadway and Construct Part on New Location | I62: 120488000 | J62: Mid-East RPO, Upper Coastal Plain RPO, | K62: Martin, Edgecombe, , | M62: 7.506621432 | O62: 10 | P62: 0 | Q62: 0 | R62: 0 | S62: 20 | T62: 4.5 | U62: 12.00662143
A63: H111277 | B63: Regional Impact | D63: US-64 | E63: US 258 | F63: US 64 | G63: Construct US 64 Westbound off-Ramp | H63: 9 - Convert Grade Separation to Interchange | I63: 4578000 | J63: Upper Coastal Plain RPO | K63: Edgecombe | M63: 2.896253036 | O63: 0 | P63: 13.33 | Q63: 0 | R63: 0 | S63: 0 | T63: 1.9995 | U63: 4.895753036
W65: =SUM(W2:W64) -> 2200

Sheet Division Highway
A1: SPOT ID | B1: Project Category | C1: TIP | D1: Route | E1: From / Cross Street | F1: To | G1: Description | H1: Specific Improvement Type | I1: Cost to NCDOT | J1: All MPOs/RPOs | K1: All Counties | M1: Division Needs Quantitative Score (Out of 50) | O1: Safety Division Score (35%) | P1: Cost Effectiveness Division Score (20%) | Q1: Transportation Plan Consistency Division Score (15%) | R1: Project Feasibility Division Score (30%) | S1: Total Methodology Score X 25% | T1: Division Score + Total Methodology Score | V1: Draft Division Assigned Points | W1: Comments
A2: H090922 | B2: Regional Impact | D2: US-13 Berkeley Boulevard | E2: Central Heights Road/Royall Avenue | G2: Realignment of Central Heights Road at the intersection of Berkeley Boulevard and Royall Avenue | H2: 10 - Improve Intersection | I2: 1395000 | J2: Goldsboro Urban Area MPO | K2: Wayne | M2: 29.2141614 | O2: 26.25 | P2: 20 | Q2: 15 | R2: 30 | S2: =SUM(O2:R2)*0.25 -> 22.8125 | T2: =M2+S2 -> 52.0266614 | W2: Scored at Regional Level
A3: H090227-A | B3: Regional Impact | C3: R-3410 | D3: NC-42 | E3: NC 50 | F3: US 70 Bypass | G3: Widen to Multi-Lanes | H3: 1 - Widen Existing Roadway | I3: 56209000 | J3: Capital Area MPO | K3: Johnston | M3: 24.3261941 | O3: 35 | P3: 20 | Q3: 15 | R3: 30 | S3: 25 | T3: 49.3261941 | W3: Scored at Regional Level
A4: H090493 | B4: Division Needs | C4: U-4753 | D4: SR-1556 Wayne Memorial Drive | E4: SR 1003 (New Hope Road) | F4: US 70 Bypass | G4: Widen to Multi-Lanes | H4: 1 - Widen Existing Roadway | I4: 13700000 | J4: Goldsboro Urban Area MPO | K4: Wayne | M4: 24.85886606 | O4: 35 | P4: 10 | Q4: 15 | R4: 30 | S4: 22.5 | T4: 47.35886606 | V4: 100
A5: H090743 | B5: Regional Impact | D5: NC-125 | E5: I-95 | F5: Old Farm Road | G5: Feasibility Study For the Widening of NC 125 from I-95 to Old Farm Road in Roanoke Rapids. | H5: 1 - Widen Existing Roadway | I5: 20526000 | J5: Peanut Belt RPO | K5: Halifax | M5: 25.69662238 | O5: 26.25 | P5: 15 | Q5: 15 | R5: 30 | S5: 21.5625 | T5: 47.25912238 | W5: Scored at Regional Level
A6: H090227-B | B6: Regional Impact | C6: R-3410 | D6: NC-42 | E6: US 70 Bypass | F6: US 70 Business | G6: Widen to Multi-Lanes | H6: 1 - Widen Existing Roadway | I6: 35019000 | J6: Capital Area MPO | K6: Johnston | M6: 25.28765533 | O6: 17.5 | P6: 20 | Q6: 15 | R6: 30 | S6: 20.625 | T6: 45.91265533 | W6: Scored at Regional Level
A7: H090219 | B7: Division Needs | C7: R-3316 | D7: SR-1544 Halifax Road | E7: SR 1770 (Sunset Avenue) | F7: SR 1714 (Bethlehem Road) | G7: SR 1770 (Sunset Avenue) to SR 1714 (Bethlehem Road). Upgrade Existing Roadway. | H7: 16 - Modernize Roadway | I7: 16300000 | J7: Rocky Mount Urban Area MPO | K7: Nash | M7: 23.10866791 | O7: 26.25 | P7: 15 | Q7: 15 | R7: 30 | S7: 21.5625 | T7: 44.67116791 | V7: 100
A8: H090429 | B8: Division Needs | C8: U-3611 | D8: SR-1003 New Hope Road | E8: SR 1556 (Wayne Memorial Drive) | F8: SR 1713 (Miller's Chapel Road) | G8: SR 1556 (Wayne Memorial Drive) to SR 1713 (Miller's Chapel Road). Widen to Multi-Lanes. | H8: 1 - Widen Existing Roadway | I8: 39073000 | J8: Goldsboro Urban Area MPO | K8: Wayne | M8: 21.68286078 | O8: 26.25 | P8: 20 | Q8: 15 | R8: 30 | S8: 22.8125 | T8: 44.49536078 | V8: 100
A9: H090388 | B9: Regional Impact | C9: U-3330 | D9: US-301 Wesleyan Blvd | E9: NC 43/48 (Benvenue Road) | F9: SR 1836 (May Drive) | G9: Add Additional Lanes | H9: 4 - Upgrade Arterial to Superstreet | I9: 32650000 | J9: Rocky Mount Urban Area MPO | K9: Nash | M9: 19.20372966 | O9: 35 | P9: 20 | Q9: 15 | R9: 30 | S9: 25 | T9: 44.20372966 | W9: Scored at Regional Level
A10: H090436-A | B10: Division Needs | C10: U-3621A | D10: SR-1604 Hunter Hill Road | E10: SR 1613 (North Winstead Avenue) | F10: SR 1616 (Country Club Road) | G10: Widen to Multi-Lanes | H10: 1 - Widen Existing Roadway | I10: 7800000 | J10: Rocky Mount Urban Area MPO | K10: Nash | M10: 21.21972494 | O10: 26.25 | P10: 20 | Q10: 15 | R10: 30 | S10: 22.8125 | T10: 44.03222494 | V10: 100
A11: H090258-A | B11: Division Needs | C11: R-3822A | D11: - New Route | E11: South of Proposed Bridge at Chockoyotte Creek | F11: NC 125 | G11: NC 125 to South of US 158. Construct a Two Lane Facility Parallel to I-95. Section A: South of Proposed Bridge at Chockoyotte Creek to NC 125. | H11: 5 - Construct Roadway on New Location | I11: 5476000 | J11: Peanut Belt RPO | K11: Halifax | M11: 23.07963925 | O11: 17.5 | P11: 20 | Q11: 15 | R11: 30 | S11: 20.625 | T11: 43.70463925 | V11: 100
A12: H090258-B | B12: Division Needs | C12: R-3822B | D12: - New Route | E12: Proposed Bridge at Chockoyotte Creek | G12: NC 125 to South of US 158. Construct a Two Lane Facility Parallel to I-95, Section B: Proposed Bridge at Chockoyotte Creek with Approaches on New Service Road Along I-95. | H12: 5 - Construct Roadway on New Location | I12: 1650000 | J12: Peanut Belt RPO | K12: Halifax | M12: 23.07963925 | O12: 17.5 | P12: 20 | Q12: 15 | R12: 30 | S12: 20.625 | T12: 43.70463925 | V12: 100
A13: H090262-B | B13: Regional Impact | C13: R-3825B | D13: NC-42 | E13: East of SR 1902 (Glen Laurel Road) | F13: SR 1003 (Buffaloe Road) | G13: Widen to Multi-Lanes | H13: 1 - Widen Existing Roadway | I13: 20300000 | J13: Capital Area MPO | K13: Johnston | M13: 22.83437321 | O13: 17.5 | P13: 20 | Q13: 15 | R13: 30 | S13: 20.625 | T13: 43.45937321 | V13: 100
A14: H090971 | B14: Regional Impact | D14: US-13 | E14: SR 1705 (Hood Swamp Road) | F14: SR 1572 (Saulston Road) | G14: Widen to 4-Lanes with a Median | H14: 1 - Widen Existing Roadway | I14: 13352000 | J14: Goldsboro Urban Area MPO | K14: Wayne | M14: 16.99353998 | O14: 35 | P14: 20 | Q14: 15 | R14: 30 | S14: 25 | T14: 41.99353998 | W14: Scored at Regional Level
A15: H090686 | B15: Statewide Mobility | D15: US-117 | E15: SR 1135 (Country Club Road) | G15: Construct interchange on US 117 at Country Club Road. No Row Costs, Division 4 Reports That NCDOT Has Already Acquired the Necessary Right-of-Way | H15: 7 - Upgrade At-grade Intersection to Interchange or Grade Separation | I15: 11640000 | J15: East Carolina RPO | K15: Wayne | M15: 16.4177488 | O15: 35 | P15: 20 | Q15: 15 | R15: 30 | S15: 25 | T15: 41.4177488 | V15: 100
A16: H140389 | B16: Regional Impact | D16: US-301 , NC-96 , NC-39 | E16: Booker Dairy Rd | F16: Ricks Rd | G16: This road is currently nearing capacity. The addition of a median will allow for better controlled access which will provide more mobility. Converting the road to 4 lanes with median and sidewalks will also provide safe routes for pedestrians that currently are creating trails along side the road. | H16: 4 - Upgrade Arterial to Superstreet | I16: 13317000 | J16: Upper Coastal Plain RPO | K16: Johnston | M16: 16.33997385 | O16: 35 | P16: 20 | Q16: 15 | R16: 30 | S16: 25 | T16: 41.33997385 | W16: Scored at Regional Level
A17: H090872 | B17: Regional Impact | D17: US-70-BUS- | E17: I-95 | F17: US 301 | G17: Pavement Rehabilitation on US 70B from I-95 to US 301 | H17: 16 - Modernize Roadway | I17: 1368000 | J17: Upper Coastal Plain RPO | K17: Johnston | M17: 18.50988398 | O17: 26.25 | P17: 20 | Q17: 15 | R17: 30 | S17: 22.8125 | T17: 41.32238398 | W17: Address with contract resurfacing
A18: H090044-BB | B18: Statewide Mobility | C18: I-5111BB | D18: I-40 | E18: US 70 Bypass | F18: NC 42 | G18: Add Additional Lanes. | H18: 1 - Widen Existing Roadway | I18: 36200000 | J18: Capital Area MPO | K18: Johnston | M18: 15.49021944 | O18: 35 | P18: 20 | Q18: 15 | R18: 30 | S18: 25 | T18: 40.49021944 | W18: Scored at Regional Level
A19: H112119-B | B19: Division Needs | C19: U-3334B | D19: - New Route - Booker Dairy Road Extension | E19: SR 1003 (Buffalo Road) | F19: US 301 (Bright Leaf Boulevard) | G19: Construct Two Lanes, Part on New Location | H19: 6 - Widen Existing Roadway and Construct Part on New Location | I19: 9390000 | J19: Upper Coastal Plain RPO | K19: Johnston | M19: 17.05493333 | O19: 26.25 | P19: 20 | Q19: 15 | R19: 30 | S19: 22.8125 | T19: 39.86743333 | V19: 100
A20: H090874 | B20: Division Needs | D20: SR-1003 Buffalo Road | E20: US 70 | F20: SR 1934 (Old Beulah Road) | G20: Widen to Three (3) Lanes from US 70 to SR 1934 (Old Beulah Road) in Johnston Co. | H20: 1 - Widen Existing Roadway | I20: 7239000 | J20: Upper Coastal Plain RPO | K20: Johnston | M20: 18.32957284 | O20: 17.5 | P20: 20 | Q20: 15 | R20: 30 | S20: 20.625 | T20: 38.95457284 | V20: 100
A21: H090428-B | B21: Regional Impact | C21: U-3609B | D21: US-13 Berkeley Boulevard | E21: SR 1003 (New Hope Road) | F21: North of SR 1705 (Hood Swamp Road) | G21: Widen to Multi-Lanes | H21: 1 - Widen Existing Roadway | I21: 11650000 | J21: Goldsboro Urban Area MPO | K21: Wayne | M21: 17.84269787 | O21: 17.5 | P21: 20 | Q21: 15 | R21: 30 | S21: 20.625 | T21: 38.46769787 | W21: Scored at Regional Level
A22: H140752 | B22: Regional Impact | D22: US-70 , NC-50 | E22: US 401 | F22: NC 42 | G22: Widen existing roadway from 4 to 6 lanes. | H22: 1 - Widen Existing Roadway | I22: 54642000 | J22: Capital Area MPO, , | K22: Wake, Johnston | M22: 22.59774126 | O22: 26.25 | P22: 20 | Q22: 15 | R22: 0 | S22: 15.3125 | T22: 37.91024126 | W22: Too costly at Division Level
A23: H090357 | B23: Regional Impact | C23: U-2714 | D23: US-117-ALT- | E23: US 70 Bypass | F23: SR 1306 (Fedelon Trail ) | G23: Widen Roadway and/or Make Safety Improvements from SR 1306 (Fedelon Trail) to Proposed US 70 Bypass. | H23: 1 - Widen Existing Roadway | I23: 20947000 | J23: Goldsboro Urban Area MPO | K23: Wayne | M23: 22.81707886 | O23: 8.75 | P23: 5 | Q23: 15 | R23: 30 | S23: 14.6875 | T23: 37.50457886 | W23: Scored at Regional Level
A24: H090881 | B24: Division Needs | D24: SR-2302 Ricks Road | E24: US 70 | F24: US 301 | G24: Widen to Three (3) Lanes from US 70 to US 301 in Johnston County | H24: 1 - Widen Existing Roadway | I24: 3984000 | J24: Upper Coastal Plain RPO | K24: Johnston | M24: 15.50320486 | O24: 26.25 | P24: 15 | Q24: 15 | R24: 30 | S24: 21.5625 | T24: 37.06570486 | V24: 100
A25: H141676 | B25: Statewide Mobility | C25: W-5600 | D25: US-70 | E25: SR 1913 (Wilson's Mills Road) | G25: Upgrade at grade intersection to interchange | H25: 7 - Upgrade At-grade Intersection to Interchange or Grade Separation | I25: 11315000 | J25: Upper Coastal Plain RPO | K25: Johnston | M25: 12.00020207 | O25: 35 | P25: 20 | Q25: 15 | R25: 30 | S25: 25 | T25: 37.00020207 | W25: RPO prefers H141891
A26: H140979 | B26: Regional Impact | D26: NC-242 | E26: US 301 | F26: I-40 | G26: Widen to 4 lane highway with median and sidewalks (4E Section). Provide a four lane divided cross section for NC 242 North from its junction with US 301 Hwy to its intersection with Interstate 40. The addition of a median will allow for better controlled access which will provide more mobility as the corridor develops in the near future. Recent development and proposed new development in the near future means an increase in AADT thereby creating the need for controlled access for safer mobility. | H26: 1 - Widen Existing Roadway | I26: 23603000 | J26: Upper Coastal Plain RPO | K26: Johnston | M26: 18.3572347 | O26: 17.5 | P26: 10 | Q26: 15 | R26: 30 | S26: 18.125 | T26: 36.4822347 | W26: Scored at Regional Level
A27: H128031 | B27: Statewide Mobility | D27: US-117 | E27: O'Berry Road | G27: Construct interchange. | H27: 7 - Upgrade At-grade Intersection to Interchange or Grade Separation | I27: 8676000 | J27: Goldsboro Urban Area MPO | K27: Wayne | M27: 13.44597922 | O27: 26.25 | P27: 20 | Q27: 15 | R27: 30 | S27: 22.8125 | T27: 36.25847922 | V27: 100
A28: H090461 | B28: Regional Impact | C28: U-4407 | D28: US-70-BUS-Ash Street | E28: SR 1579 (Berkeley Boulevard) | F28: US 70 Bypass | G28: SR 1579 (Berkeley Boulevard) to US 70 Bypass. Widen to Multi-Lanes. | H28: 1 - Widen Existing Roadway | I28: 20091000 | J28: Goldsboro Urban Area MPO | K28: Wayne | M28: 24.11317798 | O28: 17.5 | P28: 15 | Q28: 15 | R28: 0 | S28: 11.875 | T28: 35.98817798 | W28: Scored at Regional Level
A29: H090250 | B29: Division Needs | C29: R-3618 | D29: - New Route | E29: SR 1553 (Shotwell Road) West of US 70 | F29: NC 42 East of Clayton | G29: SR 1553 (Shotwell Road) West of US 70 to NC 42 East of Clayton. Two Lanes on Multi-Lane Right of Way, New Location. | H29: 5 - Construct Roadway on New Location | I29: 30548000 | J29: Capital Area MPO | K29: Johnston | M29: 22.84941188 | O29: 17.5 | P29: 20 | Q29: 15 | R29: 0 | S29: 13.125 | T29: 35.97441188 | W29: Not scored by CAMPO
A30: H090417 | B30: Regional Impact | C30: U-3464 | D30: US-301 , NC-96 | E30: NC 96 | F30: SR 1007 (Brogden Road) | G30: NC 96 to SR 1007 (Brogden Road). Widen to Multi-Lanes. | H30: 1 - Widen Existing Roadway | I30: 31956000 | J30: Upper Coastal Plain RPO | K30: Johnston | M30: 22.65825886 | O30: 17.5 | P30: 20 | Q30: 15 | R30: 0 | S30: 13.125 | T30: 35.78325886 | W30: Scored at Regional Level
A31: H090931 | B31: Statewide Mobility | D31: I-40 | E31: NC 42 | F31: NC 210 | G31: Widen to 6 Lanes | H31: 1 - Widen Existing Roadway | I31: 78409000 | J31: Capital Area MPO | K31: Johnston | M31: 12.83746234 | O31: 26.25 | P31: 20 | Q31: 15 | R31: 30 | S31: 22.8125 | T31: 35.64996234 | W31: Too costly at Division Level
A32: H141265 | B32: Statewide Mobility | D32: US-64 | E32: SR 1003 (Rollesville Rd) at Knightdale Bypass | F32: Martin County Line | G32: Upgrade US 64 to Interstate Standards | H32: 17 - Upgrade Freeway to Interstate Standards | I32: 133958000 | J32: Upper Coastal Plain RPO, Rocky Mount Urban Area MPO, Capital Area MPO | K32: Edgecombe, Nash, Wake, Franklin | M32: 18.67218055 | O32: 17.5 | P32: 20 | Q32: 0 | R32: 30 | S32: 16.875 | T32: 35.54718055 | W32: Too costly at Division Level
A33: H141939 | B33: Regional Impact | D33: NC-210 | E33: SR 1162 (Black Creek Road) | G33: Add turn lanes on NC 210 and realign the intersection of SR 1162 (Black Creek Rd) | H33: 10 - Improve Intersection | I33: 465000 | J33: Upper Coastal Plain RPO | K33: Johnston | M33: 16.73141086 | O33: 8.75 | P33: 20 | Q33: 15 | R33: 30 | S33: 18.4375 | T33: 35.16891086 | V33: 100
A34: H129617 | B34: Statewide Mobility | C34: R-2829 | D34: NC-540 New Route - Eastern Wake Freeway (Toll) | E34: I-40 | F34: US 64/264 Bypass | G34: Construct Freeway on New Location (toll) | H34: 5 - Construct Roadway on New Location | I34: 284784000 | J34: Capital Area MPO, , | K34: Wake, Johnston | M34: 21.83119202 | O34: 17.5 | P34: 20 | Q34: 15 | R34: 0 | S34: =SUM(O34:R34)*0.25 -> 13.125 | T34: =M34+S34 -> 34.95619202 | W34: Too costly at Division Level
A35: H090893 | B35: Division Needs | D35: SR-1309 Bloomery Road/Packhouse Road, SR-1382 | E35: NC 58 | F35: US 264 Alternate | G35: Widen from NC 58 to US 264 Alt in Wilson Co. | H35: 16 - Modernize Roadway | I35: 13908000 | J35: Upper Coastal Plain RPO | K35: Wilson | M35: 15.67209674 | O35: 8.75 | P35: 20 | Q35: 15 | R35: 30 | S35: 18.4375 | T35: 34.10959674 | V35: 100
A36: H140525 | B36: Division Needs | D36: SR-1913 Wilson's Mills Rd | E36: Swift Creek Rd | F36: Fire Depart Rd | G36: Widen road with center turning lane. | H36: 1 - Widen Existing Roadway | I36: 813000 | J36: Upper Coastal Plain RPO | K36: Johnston | M36: 9.711618621 | O36: 35 | P36: 15 | Q36: 15 | R36: 30 | S36: 23.75 | T36: 33.46161862 | W36: Addressed with H141949
A37: H141949 | B37: Division Needs | D37: SR-1913 Wilsons Mills Road | E37: West of SR 1501 (Swift Creek Rd) | F37: East of Fire Department Road | G37: Add a center turn lane at Wilson's Mills Elementary School | H37: 1 - Widen Existing Roadway | I37: 1079000 | J37: Upper Coastal Plain RPO | K37: Johnston | M37: 9.161760051 | O37: 35 | P37: 15 | Q37: 15 | R37: 30 | S37: 23.75 | T37: 32.91176005 | V37: 100
A38: H111019 | B38: Regional Impact | D38: NC-50 | E38: Timber Drive | F38: NC 42 | G38: Widen to Four Lanes with a Median | H38: 1 - Widen Existing Roadway | I38: 57332000 | J38: Capital Area MPO, , | K38: Wake, Johnston | M38: 17.33568166 | O38: 26.25 | P38: 20 | Q38: 15 | R38: 0 | S38: 15.3125 | T38: 32.64818166 | W38: Too costly at Division Level
A39: H090148 | B39: Statewide Mobility | C39: R-2581 | D39: US-158 , NC-903 | E39: SR 1405 (Roanoke Chapel Road) East of Littleton | F39: I-95 South of Roanoke Rapids | G39: Widen to Multi-Lanes. | H39: 1 - Widen Existing Roadway | I39: 86400000 | J39: Peanut Belt RPO | K39: Halifax | M39: 9.496655226 | O39: 26.25 | P39: 20 | Q39: 15 | R39: 30 | S39: 22.8125 | T39: 32.30915523 | W39: Too costly at Division Level
A40: H111061 | B40: Division Needs | D40: SR-1770 Eastern Avenue | E40: Red Oak Road | F40: Old Carriage Road (SR Xxxx) | G40: Widen from 2-Lane Road to 4-Lane Divided Road. | H40: 1 - Widen Existing Roadway | I40: 30708000 | J40: Rocky Mount Urban Area MPO | K40: Nash | M40: 14.05648341 | O40: 17.5 | P40: 10 | Q40: 15 | R40: 30 | S40: 18.125 | T40: 32.18148341 | V40: 100
A41: H090496 | B41: Division Needs | C41: U-4762 | D41: SR-1250 Springfield Road | E41: US 64 Alternate | F41: SR 1243 (Leggett Road) | G41: US 64 Alternate to SR 1243 (Leggett Road). Widen to Multi-Lanes. | H41: 1 - Widen Existing Roadway | I41: 6504000 | J41: Rocky Mount Urban Area MPO | K41: Edgecombe | M41: 12.73540366 | O41: 17.5 | P41: 15 | Q41: 15 | R41: 30 | S41: 19.375 | T41: 32.11040366 | W41: H090516 preferred by MPO
A42: H140344 | B42: Division Needs | D42: Cokey Road | E42: Redgate Avenue | F42: Old Wilson Road | G42: Widen | H42: 1 - Widen Existing Roadway | I42: 2086000 | J42: Rocky Mount Urban Area MPO | K42: Edgecombe | M42: 10.25239533 | O42: 26.25 | P42: 15 | Q42: 15 | R42: 30 | S42: 21.5625 | T42: 31.81489533 | W42: H090516 preferred by MPO
A43: H111256 | B43: Statewide Mobility | D43: US-70 | E43: US 70 Bypass (West Terminus, East of SR 1408) | F43: SR 1229 (to Wayne County Line) | G43: Improve Existing US 70 to Freeway Standards from the West End of the US 70 Bypass to the Wayne/Johnston County Line | H43: 2 - Upgrade Arterial to Freeway/Expressway | I43: 65322000 | J43: East Carolina RPO, Goldsboro Urban Area MPO | K43: Wayne | M43: 11.97964888 | O43: 26.25 | P43: 20 | Q43: 0 | R43: 30 | S43: 19.0625 | T43: 31.04214888 | W43: Too costly at Division Level
A44: H141587 | B44: Regional Impact | D44: NC-97 Atlantic Ave | E44: NC 97 | F44: NC 97 | G44: Extend NC 97 on new location to Tanner Road | H44: 5 - Construct Roadway on New Location | I44: 1894000 | J44: Rocky Mount Urban Area MPO | K44: Edgecombe | M44: 11.97518945 | O44: 26.25 | P44: 5 | Q44: 15 | R44: 30 | S44: 19.0625 | T44: 31.03768945 | W44: Scored at Regional Level
A45: H090516 | B45: Division Needs | C45: U-5026 | D45: I-95 | E45: SR 1770 (Sunset Avenue) | G45: Convert Grade Separation to interchange | H45: 9 - Convert Grade Separation to Interchange | I45: 25500000 | J45: Rocky Mount Urban Area MPO | K45: Nash | M45: 12.02447491 | O45: 17.5 | P45: 10 | Q45: 15 | R45: 30 | S45: 18.125 | T45: 30.14947491 | V45: 100
A46: H141828 | B46: Regional Impact | D46: NC-42 | E46: SR 1003 (Buffalo Road) | F46: CAMPO/Upper Coastal Plain RPO Boundary at the Wilson County Line | G46: Modernize roadway and operational improvements including widening lanes, improving shoulders, passing lanes, turning lanes, and intersection improvements. (Moving Ahead Project) | H46: 16 - Modernize Roadway | I46: 12295000 | J46: Capital Area MPO, Upper Coastal Plain RPO | K46: Johnston | M46: 13.11400749 | O46: 17.5 | P46: 20 | Q46: 0 | R46: 30 | S46: 16.875 | T46: 29.98900749
A47: H090895 | B47: Division Needs | D47: SR-1900 Noble Street | E47: SR 1003 (Buffalo Road) | F47: US 301 | G47: Expand to Three(3) Lanes from SR 1003 to US 301 | H47: 1 - Widen Existing Roadway | I47: 8609000 | J47: Upper Coastal Plain RPO | K47: Johnston | M47: 11.80869343 | O47: 17.5 | P47: 10 | Q47: 15 | R47: 30 | S47: 18.125 | T47: 29.93369343
A48: H111275 | B48: Regional Impact | D48: NC-42 | E48: US 264/ I-795 | F48: Forest Hills Rd. (SR 1165) | G48: Upgrade This Corridor to a Four-Lane Divided Boulevard with a Raised 23-Foot Median with Bicycle and Pedestrian Lanes, and Curb and Gutter. Realignment Is Proposed, As Part of This Project at NC 42/ Old Raleigh Rd. (SR 1136) and Airport Blvd. (SR 1158) Due to the Proximity of This intersection to Several Schools in the Area. | H48: 11 - Access Management | I48: 14578000 | J48: Upper Coastal Plain RPO | K48: Wilson | M48: 11.49239411 | O48: 8.75 | P48: 20 | Q48: 15 | R48: 30 | S48: 18.4375 | T48: 29.92989411
A49: H111059 | B49: Regional Impact | D49: NC-48 | E49: Red Oak / Battleboro Road | F49: NC 4 | G49: Widen from 2-Lanes to 4-Lane Divided. | H49: 1 - Widen Existing Roadway | I49: 17409000 | J49: Rocky Mount Urban Area MPO | K49: Nash | M49: 12.83848312 | O49: 17.5 | P49: 5 | Q49: 15 | R49: 30 | S49: 16.875 | T49: 29.71348312
A50: H111266 | B50: Regional Impact | D50: US-264 | E50: US 264 | F50: US 264 Alt./NC 42/ Ward Blvd. | G50: Upgrading US 264 Alt. from Airport Blvd. (SR 1320) to US 264 Alt./NC 42/Ward Blvd. (SR 1516) to a Four-Lane Divided Boulevard witha23 Foot Raised Landscaped Median, Sidewalks, and Wide Outside Lanes with Accommodations For Bikes. the Project Proposal For US264Alt. from US 264 Bypass to Airport Blvd. (SR 1320) includes Measure to Limit Access, Such As a Superstreet Design with Single Phased Lights For Protected Left Turns, Right-ins, Right-Outs, and Limited Driveways. | H50: 4 - Upgrade Arterial to Superstreet | I50: 18126000 | J50: Upper Coastal Plain RPO | K50: Wilson | M50: 10.97466683 | O50: 8.75 | P50: 20 | Q50: 15 | R50: 30 | S50: 18.4375 | T50: 29.41216683
A51: H090346-C | B51: Regional Impact | C51: U-2561C | D51: NC-43 | E51: SR 1613 (Woodruff Avenue) | F51: I-95 | G51: SR 1616 (Country Club Road) to I-95. Widen to Multi-Lanes with Curb and Gutter. Section C: SR 1613 (Woodruff Avenue) to I-95. | H51: 1 - Widen Existing Roadway | I51: 18584000 | J51: Upper Coastal Plain RPO | K51: Nash | M51: 12.69853073 | O51: 8.75 | P51: 10 | Q51: 15 | R51: 30 | S51: 15.9375 | T51: 28.63603073
A52: H111281 | B52: Regional Impact | D52: US-301 | E52: NC 42 | F52: US 264 | G52: Upgrade This Facility to a Four-Lane Divided Boulevard with a 23-Foot Raised Landscaped Median, Sidewalks, and Wide Outside Lanes with Accommodations For Bikes. | H52: 11 - Access Management | I52: 53507000 | J52: Upper Coastal Plain RPO | K52: Wilson | M52: 10.11242145 | O52: 8.75 | P52: 20 | Q52: 15 | R52: 30 | S52: 18.4375 | T52: 28.54992145
A53: H129200-G | B53: Statewide Mobility | D53: I-95 | E53: SR 1002 (Long Branch Road) | F53: I-40 | G53: Widen Roadway to 8 Lanes. | H53: 1 - Widen Existing Roadway | I53: 143388000 | J53: Mid-Carolina RPO, Upper Coastal Plain RPO, | K53: Harnett, Johnston | M53: 18.67214524 | O53: 17.5 | P53: 20 | Q53: 0 | R53: 0 | S53: 9.375 | T53: 28.04714524
A54: H141827 | B54: Regional Impact | D54: US-258 | E54: SR 1100 (Douglas Hill Farm Road) | F54: Edgecombe County Line | G54: Currently a 2-lane major thoroughfare, this project recommends to widen to 24 feet w/ paved shoulders and turn lanes where necessary. This is recommended as a continuity from recommendations in Edgecombe County CTP and the Northampton County CTP. | H54: 1 - Widen Existing Roadway | I54: 6793000 | J54: Peanut Belt RPO | K54: Halifax | M54: 7.287174825 | O54: 17.5 | P54: 20 | Q54: 15 | R54: 30 | S54: 20.625 | T54: 27.91217482
A55: H090421 | B55: Division Needs | C55: U-3471 | D55: SR-1606 Black Creek Road | E55: US 264 Bypass | F55: US 301/264 Alternate (Ward Boulevard) | G55: US 264 Bypass to US 301/264 Alternate (Ward Boulevard). Widen to Multi-Lanes. | H55: 1 - Widen Existing Roadway | I55: 18080000 | J55: Upper Coastal Plain RPO | K55: Wilson | M55: 9.66692677 | O55: 17.5 | P55: 10 | Q55: 15 | R55: 30 | S55: 18.125 | T55: 27.79192677
A56: H141891 | B56: Statewide Mobility | C56: W-5600 | D56: US-70 | E56: US 70 Business | F56: Neuse River | G56: Upgrade to freeway improving SR 1501 (Swift Creek Rd)/US 70 and SR 1913 (Wilson's Mills Rd)/US 70 at grade intersections to interchanges | H56: 2 - Upgrade Arterial to Freeway/Expressway | I56: 30913000 | J56: Upper Coastal Plain RPO | K56: Johnston | M56: 6.286284818 | O56: 17.5 | P56: 20 | Q56: 15 | R56: 30 | S56: 20.625 | T56: 26.91128482
A57: H111282 | B57: Regional Impact | D57: - Wilson Signal System | E57: Wilson City Limits | F57: Wilson City Limits | G57: Construct Citywide Signal System in City of Wilson | H57: 13 - Citywide Signal System | I57: 5000000 | J57: Upper Coastal Plain RPO | K57: Wilson | M57: 8.200042639 | O57: 8.75 | P57: 20 | Q57: 15 | R57: 30 | S57: 18.4375 | T57: 26.63754264
A58: H110982 | B58: Division Needs | D58: SR-1702 | E58: SR 1003 (New Hope Road) | F58: Proposed US 70 Bypass | G58: Widening For a Two-Way Left Turn Lane | H58: 1 - Widen Existing Roadway | I58: 6748000 | J58: Goldsboro Urban Area MPO | K58: Wayne | M58: 16.37590087 | O58: 8.75 | P58: 15 | Q58: 15 | R58: 0 | S58: 9.6875 | T58: 26.06340087
A59: H090892 | B59: Division Needs | D59: SR-1163 Downing Street | E59: SR 1165 (Forest Hills Road) | F59: US 264, | G59: Widen from Forest Hills to US 264 | H59: 1 - Widen Existing Roadway | I59: 6737000 | J59: Upper Coastal Plain RPO | K59: Wilson | M59: 15.04329889 | O59: 8.75 | P59: 20 | Q59: 15 | R59: 0 | S59: 10.9375 | T59: 25.98079889
A60: H090224-A | B60: Regional Impact | C60: R-3407A | D60: NC-33 | E60: US 64 in Tarboro | F60: NC 42 at Scott's Crossroads | G60: Widen to Multi-Lanes | H60: 1 - Widen Existing Roadway | I60: 32069000 | J60: Upper Coastal Plain RPO | K60: Edgecombe | M60: 7.281351451 | O60: 17.5 | P60: 10 | Q60: 15 | R60: 30 | S60: 18.125 | T60: 25.40635145
A61: H111270 | B61: Regional Impact | D61: NC-58 | E61: NC 42/Ward Blvd. (SR 1516) | F61: Forest Hills Rd. (SR 1165) | G61: Upgrading NC 58 Between NC 42/Ward Blvd. (SR 1516) and Forest Hills Rd. (SR 1165) to a Five-Lane Facility with Sidewalks and to Provide Accommodations For Bike to Correspond to Proposed Bicycle and Pedestrian Improvements. | H61: 1 - Widen Existing Roadway | I61: 1003000 | J61: Upper Coastal Plain RPO | K61: Wilson | M61: 10.07770323 | O61: 26.25 | P61: 20 | Q61: 15 | R61: 0 | S61: 15.3125 | T61: 25.39020323
A62: H141671 | B62: Statewide Mobility | C62: W-5600 | D62: US-70 | E62: SR 1501 (Swift Creek Road) | G62: Upgrade at grade intersection to an interchange | H62: 7 - Upgrade At-grade Intersection to Interchange or Grade Separation | I62: 11315000 | J62: Upper Coastal Plain RPO | K62: Johnston | M62: 6.691285449 | O62: 8.75 | P62: 20 | Q62: 15 | R62: 30 | S62: 18.4375 | T62: 25.12878545
A63: H090383 | B63: Statewide Mobility | C63: U-3125 | D63: US-117 | E63: NC 55 | F63: US 117 Relocation South of US 70 | G63: NC 55 to US 117 Relocation South of US 70. Upgrade Roadway to Freeway Standards, Part on New Location | H63: 6 - Widen Existing Roadway and Construct Part on New Location | I63: 230209000 | J63: Goldsboro Urban Area MPO, East Carolina RPO | K63: Wayne | M63: 12.84055911 | O63: 17.5 | P63: 15 | Q63: 15 | R63: 0 | S63: 11.875 | T63: 24.71555911
A64: H090506 | B64: Division Needs | C64: U-5002 | D64: SR-1542 Airport Road, SR-1278 , SR-1555 | E64: US 301 Bypass (Wesleyan Boulevard) | F64: SR 1401 (Tanner Road) | G64: US 301 Bypass (Wesleyan Boulevard) to SR 1401 (Tanner Road). Widen to Multi-Lanes. | H64: 1 - Widen Existing Roadway | I64: 15352000 | J64: Rocky Mount Urban Area MPO | K64: Nash, Edgecombe | M64: 10.32814513 | O64: 0 | P64: 10 | Q64: 15 | R64: 30 | S64: 13.75 | T64: 24.07814513
A65: H129202 | B65: Statewide Mobility | D65: I-95 | E65: I-40 | F65: North of NC 222 | G65: Widen Roadway to 6 Lanes. | H65: 1 - Widen Existing Roadway | I65: 324342000 | J65: Upper Coastal Plain RPO | K65: Johnston | M65: 10.38738237 | O65: 17.5 | P65: 20 | Q65: 15 | R65: 0 | S65: 13.125 | T65: 23.51238237
A66: H141485 | B66: Division Needs | D66: - S. Eastpointe Ave | E66: S. Eastpointe Ave | F66: Oak Level Road | G66: Extend S. Eastpointe Ave to Oak Level Road | H66: 5 - Construct Roadway on New Location | I66: 4219000 | J66: Rocky Mount Urban Area MPO | K66: Nash | M66: 14.69001606 | O66: 0 | P66: 20 | Q66: 15 | R66: 0 | S66: =SUM(O66:R66)*0.25 -> 8.75 | T66: =M66+S66 -> 23.44001606
A67: H141835 | B67: Regional Impact | D67: US-301 | E67: NC 561 | F67: White Hill Road | G67: Currently a 2-lane major thoroughfare running through Halifax, which serves as the county seat, higher levels morning and afternoon traffic are experienced due to workers moving through the area. It is recommended to widen to 24 feet w/ paved shoulders and turn lanes at all major intersections from NC 561 to White Hill Road. This is recommended as mobility improvement through Halifax with improved connectivity through county. | H67: 1 - Widen Existing Roadway | I67: 13108000 | J67: Peanut Belt RPO | K67: Halifax | M67: 4.992546716 | O67: 8.75 | P67: 20 | Q67: 15 | R67: 30 | S67: 18.4375 | T67: 23.43004672
A68: H090891 | B68: Division Needs | D68: SR-1927 East Anderson Street | E68: Webb Road | F68: I-95 | G68: Widen to Three (3) Lanes from I-95 to Webb Street in Johnston County | H68: 1 - Widen Existing Roadway | I68: 5234000 | J68: Upper Coastal Plain RPO | K68: Johnston | M68: 7.179097541 | O68: 8.75 | P68: 10 | Q68: 15 | R68: 30 | S68: 15.9375 | T68: 23.11659754
A69: H111041 | B69: Regional Impact | D69: NC-48 | E69: Homestead Road | F69: Red Oak / Battleboro Road | G69: Widen NC 48 from 2 Lane Road to 4 Lane Divided Highway. | H69: 1 - Widen Existing Roadway | I69: 18427000 | J69: Rocky Mount Urban Area MPO | K69: Nash | M69: 8.863119302 | O69: 26.25 | P69: 15 | Q69: 15 | R69: 0 | S69: 14.0625 | T69: 22.9256193
A70: H111039 | B70: Regional Impact | D70: US-64-BUS- | E70: Western Ave | F70: Cross St | G70: Re-Align the intersection of Western Avenue and Cross Street in the town of Nashville to Eliminate the offset. | H70: 10 - Improve Intersection | I70: 1395000 | J70: Rocky Mount Urban Area MPO | K70: Nash | M70: 6.472874614 | O70: 0 | P70: 20 | Q70: 15 | R70: 30 | S70: 16.25 | T70: 22.72287461
A71: H140772 | B71: Division Needs | D71: - East Railroad Street | E71: Tobacco Street | F71: Rock Quarry Road | G71: Extend Roadway on New Location | H71: 5 - Construct Roadway on New Location | I71: 2413000 | J71: Rocky Mount Urban Area MPO | K71: Wilson | M71: 10.18240007 | O71: 0 | P71: 20 | Q71: 0 | R71: 30 | S71: 12.5 | T71: 22.68240007
A72: H141717 | B72: Division Needs | D72: - Moore Street | E72: CSX RR | G72: Improve grade approach to RR. | H72: 10 - Improve Intersection | I72: 2325000 | J72: Rocky Mount Urban Area MPO | K72: Nash | M72: 7.477324886 | O72: 8.75 | P72: 20 | Q72: 0 | R72: 30 | S72: 14.6875 | T72: 22.16482489
A73: H090217 | B73: Regional Impact | C73: R-3308 | D73: US-258 | E73: Crescent Road in Kinston in Lenoir County | F73: US 64 at Tarboro in Edgecombe County | G73: Crescent Road in Kinston in Lenoir County to US 64 at Tarboro in Edgecombe County. Multi-Lanes on New Location. | H73: 5 - Construct Roadway on New Location | I73: 717536000 | J73: East Carolina RPO, Upper Coastal Plain RPO, Mid-East RPO | K73: Greene, Edgecombe, Lenoir, Pitt | M73: 16.39177695 | O73: 17.5 | P73: 5 | Q73: 0 | R73: 0 | S73: 5.625 | T73: 22.01677695
A74: H142232 | B74: Division Needs | D74: SR 1138 Baker Chapel Church Road | E74: West of US 117 | F74: East of US 117 | G74: Construct new roadway/bridge across US 117 to connect both sides of Baker Chapel Church Road | H74: 5 - Construct Roadway on New Location | I74: 2649000 | J74: East Carolina RPO | K74: Wayne | M74: 15.49296633 | O74: 8.75 | P74: 0 | Q74: 15 | R74: 0 | S74: 5.9375 | T74: 21.43046633
A75: H141532 | B75: Division Needs | D75: - Nashville Connector Phase II | E75: Old White Oak Road | F75: NC 58 | G75: Build new road | H75: 5 - Construct Roadway on New Location | I75: 7246000 | J75: Rocky Mount Urban Area MPO | K75: Nash | M75: 6.738203788 | O75: 8.75 | P75: 5 | Q75: 15 | R75: 30 | S75: 14.6875 | T75: 21.42570379
A76: H090889 | B76: Division Needs | D76: SR-1327 London Church Road | E76: SR 1332 (Lake Wilson Road) | F76: NC 42 (Herring Avenue) | G76: Widen from Herring Avenue to Lake Wilson Road | H76: 1 - Widen Existing Roadway | I76: 23758000 | J76: Upper Coastal Plain RPO | K76: Wilson | M76: 6.650172841 | O76: 8.75 | P76: 5 | Q76: 15 | R76: 30 | S76: 14.6875 | T76: 21.33767284
A77: H142231 | B77: Statewide Mobility | D77: US-117 | E77: West Main Street | G77: Convert at-grade intersection to grade separation | H77: 7 - Upgrade At-grade Intersection to Interchange or Grade Separation | I77: 2325000 | J77: East Carolina RPO | K77: Wayne | M77: 10.18521803 | O77: 8.75 | P77: 20 | Q77: 15 | R77: 0 | S77: 10.9375 | T77: 21.12271803
A78: H111279 | B78: Regional Impact | D78: US-70 | E78: US 301 | F78: I-95 | G78: Provide a 4-Lane Divided Cross Section For This Facility. the Addition of a Median Will Allow For Better Access Control, thereby Providing Higher Mobility For the Facility. | H78: 11 - Access Management | I78: 8775000 | J78: Upper Coastal Plain RPO | K78: Johnston | M78: 4.852285007 | O78: 0 | P78: 20 | Q78: 15 | R78: 30 | S78: 16.25 | T78: 21.10228501
A79: H129205 | B79: Statewide Mobility | D79: I-95 | E79: South of SR 1604 | F79: North of NC 481 | G79: Widen Roadway to 6 Lanes. | H79: 1 - Widen Existing Roadway | I79: 348801000 | J79: Upper Coastal Plain RPO, Peanut Belt RPO, Rocky Mount Urban Area MPO | K79: Nash, Halifax | M79: 9.722031685 | O79: 8.75 | P79: 20 | Q79: 15 | R79: 0 | S79: 10.9375 | T79: 20.65953168
A80: H129206 | B80: Statewide Mobility | D80: I-95 | E80: North of NC 481 | F80: Halifax/Northampton County Line | G80: Widen Roadway to 6 Lanes. | H80: 1 - Widen Existing Roadway | I80: 436486000 | J80: Peanut Belt RPO | K80: Halifax | M80: 11.1510932 | O80: 17.5 | P80: 20 | Q80: 0 | R80: 0 | S80: 9.375 | T80: 20.5260932
A81: H141866 | B81: Regional Impact | D81: NC-58 | E81: E Old Spring Hope Rd | F81: Silver Lake | G81: Widen the existing 2 lane highway to a 4 lane highway beginning at the NC 58 and Old Spring Hope Rd intersection in Nashville proceeding south on the existing alignment approximately 11 miles to the City of Wilson Limits. | H81: 1 - Widen Existing Roadway | I81: 81536000 | J81: Rocky Mount Urban Area MPO, Upper Coastal Plain RPO | K81: Nash, Wilson | M81: 7.263956168 | O81: 17.5 | P81: 5 | Q81: 0 | R81: 30 | S81: 13.125 | T81: 20.38895617
A82: H090878 | B82: Division Needs | D82: SR-1501 New Route - Swift Creek Parkway | E82: US 70 Business | F82: US 301 | G82: Roadway Improvements That Connect US 70 Business to US 301 in Johnston County | H82: 6 - Widen Existing Roadway and Construct Part on New Location | I82: 32059000 | J82: Upper Coastal Plain RPO | K82: Johnston | M82: 12.25596875 | O82: 17.5 | P82: 15 | Q82: 0 | R82: 0 | S82: 8.125 | T82: 20.38096875
A83: H110977 | B83: Division Needs | D83: SR-1003 | E83: NC 111 (Patetown Road) | F83: SR 1556 (Wayne Memorial Drive | G83: Widen to Four Lanes with a Median from Patetown Road (NC 111) to SR 1556 (Wayne Memorial Drive) | H83: 1 - Widen Existing Roadway | I83: 11115000 | J83: Goldsboro Urban Area MPO | K83: Wayne | M83: 5.672940877 | O83: 8.75 | P83: 5 | Q83: 15 | R83: 30 | S83: 14.6875 | T83: 20.36044088
A84: H090206 | B84: Regional Impact | C84: R-3102 | D84: NC-58 New Route | E84: Kinston | F84: Wilson | G84: Kinston to Wilson. Construct a Freeway on New Location. | H84: 5 - Construct Roadway on New Location | I84: 463923000 | J84: East Carolina RPO, Upper Coastal Plain RPO, | K84: Greene, Wilson, Lenoir | M84: 14.72167056 | O84: 17.5 | P84: 5 | Q84: 0 | R84: 0 | S84: 5.625 | T84: 20.34667056
A85: H090470 | B85: Regional Impact | C85: U-4424 | D85: NC-111 Wilson Street | E85: US 64 Alternate (Western Boulevard) | F85: NC 122 (Mcnair Road) | G85: Widen to Three Lanes | H85: 1 - Widen Existing Roadway | I85: 9900000 | J85: Upper Coastal Plain RPO | K85: Edgecombe | M85: 3.544012401 | O85: 0 | P85: 20 | Q85: 15 | R85: 30 | S85: 16.25 | T85: 19.7940124
A86: H111213 | B86: Statewide Mobility | D86: US-117 | E86: NC 55 in Mount Olive, NC | F86: I-40 in Sampson County | G86: Improve US 117 to Freeway Standards. Expansion of I-795 South to I-40 | H86: 2 - Upgrade Arterial to Freeway/Expressway | I86: 40356000 | J86: East Carolina RPO, Mid-Carolina RPO, | K86: Duplin, Wayne, Sampson | M86: 8.725224215 | O86: 8.75 | P86: 20 | Q86: 15 | R86: 0 | S86: 10.9375 | T86: 19.66272422
A87: H090329 | B87: Regional Impact | C87: U-2419 | D87: NC-48 | E87: Roanoke Avenue in Halifax County | F87: NC 46 in Gaston in Northampton County | G87: Roanoke Avenue in Halifax County to NC 46 in Gaston in Northampton County. Widen to Multi-Lanes. | H87: 1 - Widen Existing Roadway | I87: 30987000 | J87: Peanut Belt RPO, , | K87: Northampton, Halifax | M87: 17.11917658 | O87: 0 | P87: 10 | Q87: 0 | R87: 0 | S87: 2.5 | T87: 19.61917658
A88: H090224-B | B88: Regional Impact | C88: R-3407B | D88: NC-33 | E88: NC 42 at Scott's Crossroads | F88: NC 222 at Belvoir Crossroads | G88: Widen to Multi-Lanes | H88: 1 - Widen Existing Roadway | I88: 43200000 | J88: Mid-East RPO, Upper Coastal Plain RPO, | K88: Pitt, Edgecombe | M88: 13.55396468 | O88: 8.75 | P88: 15 | Q88: 0 | R88: 0 | S88: 5.9375 | T88: 19.49146468
A89: H090882 | B89: Division Needs | D89: SR-1207 McNair Road | E89: US 64 | F89: US 64 Alternate | G89: Widen Mcnair Road to Three (3) Lanes from US64 to US 64 Alternate in Edgecombe County. | H89: 1 - Widen Existing Roadway | I89: 16077000 | J89: Upper Coastal Plain RPO | K89: Edgecombe | M89: 6.902551036 | O89: 0 | P89: 5 | Q89: 15 | R89: 30 | S89: 12.5 | T89: 19.40255104
A90: H129203 | B90: Statewide Mobility | D90: I-95 | E90: North of NC 222 | F90: North SR 1001 | G90: Widen Roadway to 6 Lanes. | H90: 1 - Widen Existing Roadway | I90: 255327000 | J90: Upper Coastal Plain RPO | K90: Wilson | M90: 7.896660433 | O90: 8.75 | P90: 20 | Q90: 15 | R90: 0 | S90: 10.9375 | T90: 18.83416043
A91: H141500 | B91: Division Needs | D91: - Phase i Connector | E91: Western Ave | F91: E. Smith Road | G91: New road | H91: 5 - Construct Roadway on New Location | I91: 1416000 | J91: Rocky Mount Urban Area MPO | K91: Nash | M91: 11.19812023 | O91: 8.75 | P91: 0 | Q91: 15 | R91: 0 | S91: 5.9375 | T91: 17.13562023
A92: H090420 | B92: Division Needs | C92: U-3470 | D92: - New Route - Northern Loop | E92: NC 58 (Nash Street) | F92: US 301 interchange at SR 1436 (Rosebud Church Road) | G92: NC 58 (Nash Street) to US 301 interchange at SR 1426 (Rosebud Church Road). Multi-Lanes on New Location. | H92: 5 - Construct Roadway on New Location | I92: 66433000 | J92: Upper Coastal Plain RPO | K92: Wilson | M92: 7.24581506 | O92: 8.75 | P92: 15 | Q92: 15 | R92: 0 | S92: 9.6875 | T92: 16.93331506
A93: H129204 | B93: Statewide Mobility | D93: I-95 | E93: North SR 1001 | F93: South of SR 1604 | G93: Widen Roadway to 6 Lanes. | H93: 1 - Widen Existing Roadway | I93: 444862000 | J93: Rocky Mount Urban Area MPO, Upper Coastal Plain RPO | K93: Nash, Wilson | M93: 9.320263598 | O93: 8.75 | P93: 20 | Q93: 0 | R93: 0 | S93: 7.1875 | T93: 16.5077636
A94: H090741 | B94: Division Needs | D94: - New Route | E94: NC 903 | F94: New Halifax-Northampton Regional Airport | G94: New Road to Be Constructed from NC 903 to the New Halifax-Northampton Regional Airport, Currently in the Planning Stages. Entrance of the New Road to Be Located Approximately 2 Miles East of the intersection of I-95 and NC 903 (Exit 168). | H94: 5 - Construct Roadway on New Location | I94: 8824000 | J94: Peanut Belt RPO | K94: Halifax | M94: 9.232737679 | O94: 8.75 | P94: 5 | Q94: 15 | R94: 0 | S94: 7.1875 | T94: 16.42023768
A95: H111268 | B95: Regional Impact | D95: NC-58 | E95: SR 1320 (Airport Blvd) | F95: NC 42/Ward Blvd. (SR 1516) | G95: Upgrading NC 58 Between Airport Blvd. (SR 1320) and NC 42/Ward Blvd. (SR 1516) to a Four-Lane Divided Boulevard with a Raised 23 - Foot Median with Bicycle and Pedestrian Lanes, and Curb and Gutter. | H95: 11 - Access Management | I95: 11103000 | J95: Upper Coastal Plain RPO | K95: Wilson | M95: 7.548522898 | O95: 0 | P95: 20 | Q95: 15 | R95: 0 | S95: 8.75 | T95: 16.2985229
A96: H090883 | B96: Division Needs | D96: SR-1608 Wilco Boulevard | E96: US 301 | F96: SR 1606 (Black Creek Road) | G96: Widen SR 1608 from US. 301 to Black Creek Road in Wilson County | H96: 1 - Widen Existing Roadway | I96: 13748000 | J96: Upper Coastal Plain RPO | K96: Wilson | M96: 2.990041092 | O96: 0 | P96: 5 | Q96: 15 | R96: 30 | S96: 12.5 | T96: 15.49004109
A97: H090879 | B97: Division Needs | D97: SR-1124 Massey Road | E97: US 264 | G97: Interchange Development at US 264 and Massey Road in Nash County | H97: 9 - Convert Grade Separation to Interchange | I97: 11190000 | J97: Upper Coastal Plain RPO | K97: Nash | M97: 3.421979806 | O97: 8.75 | P97: 0 | Q97: 0 | R97: 30 | S97: 9.6875 | T97: 13.10947981
A98: H090154 | B98: Statewide Mobility | C98: R-2587 | D98: US-158 | E98: I-85 in Warren County | F98: SR 1405 East of Littleton in Halifax County | G98: Widen to Multi-Lanes with Bypasses of Norlina, Macon and Littleton on New Location. | H98: 6 - Widen Existing Roadway and Construct Part on New Location | I98: 130625000 | J98: Kerr-Tar RPO, Peanut Belt RPO, | K98: Warren, Halifax | M98: 5.992793301 | O98: 0 | P98: 10 | Q98: 15 | R98: 0 | S98: =SUM(O98:R98)*0.25 -> 6.25 | T98: =M98+S98 -> 12.2427933
A99: H090890 | B99: Division Needs | D99: SR-1326 Corbett Avenue | E99: SR 1356 (Raleigh Road) | F99: SR 1327 (London Church Road) | G99: Widen Corbett Avenue from Raleigh Road to London Church Road | H99: 1 - Widen Existing Roadway | I99: 11345000 | J99: Upper Coastal Plain RPO | K99: Wilson | M99: 7.177846431 | O99: 8.75 | P99: 10 | Q99: 0 | R99: 0 | S99: 4.6875 | T99: 11.86534643
A100: H090851 | B100: Division Needs | D100: SR-1908 Corbett Road | E100: US 64 Alt | F100: 6/10 Mile West of US 64 Alt | G100: Widen and Resurface Corbett Road in Nashville. | H100: 16 - Modernize Roadway | I100: 798000 | J100: Rocky Mount Urban Area MPO | K100: Nash | M100: 0 | O100: 0 | P100: 0 | Q100: 15 | R100: 30 | S100: 11.25 | T100: 11.25
A101: H090880 | B101: Division Needs | D101: SR-1151 Bryantown Road | E101: US 64 | G101: interchange Development at US64 and Bryantown Road in Nash County | H101: 9 - Convert Grade Separation to Interchange | I101: 11190000 | J101: Upper Coastal Plain RPO | K101: Nash | M101: 8.870648277 | O101: 8.75 | P101: 0 | Q101: 0 | R101: 0 | S101: 2.1875 | T101: 11.05814828
A102: H090468 | B102: Division Needs | C102: U-4419 | D102: - New Route - SR 2403 (Component Drive) Extension | E102: Peeden Street | F102: US 301 (Bright Leaf Boulevard) | G102: Peeden Street to US 301 (Bright Leaf Boulevard). Construct Two Lanes on Multi-Lane Right of Way, New Location. | H102: 5 - Construct Roadway on New Location | I102: 9680000 | J102: Upper Coastal Plain RPO | K102: Johnston | M102: 5.514103055 | O102: 17.5 | P102: 0 | Q102: 0 | R102: 0 | S102: 4.375 | T102: 9.889103055
A103: H111272 | B103: Division Needs | D103: SR-1602 | E103: Old Black Creek Rd. (SR 1606) | F103: US 264 | G103: Upgrading to a Four-Lane Divided Boulevard with a raised 23-Foot Median with Bicycle and Pedestrian Lanes, and Curb and Gutter and an Underpass at the intersection with the CSX Rail-Road Line. | H103: 1 - Widen Existing Roadway | I103: 30541000 | J103: Upper Coastal Plain RPO | K103: Wilson | M103: 4.496359954 | O103: 0 | P103: 5 | Q103: 15 | R103: 0 | S103: 5 | T103: 9.496359954
A104: H090182 | B104: Regional Impact | C104: R-2700 | D104: NC-11 | E104: US 64 Relocation North of Bethel | F104: NC 903 | G104: Widen to Four Lanes with a Bypass of Oak City on New Location. | H104: 6 - Widen Existing Roadway and Construct Part on New Location | I104: 120488000 | J104: Mid-East RPO, Upper Coastal Plain RPO, | K104: Martin, Edgecombe | M104: 5.002954883 | O104: 8.75 | P104: 5 | Q104: 0 | R104: 0 | S104: 3.4375 | T104: 8.440454883
A105: H111277 | B105: Regional Impact | D105: US-64 | E105: US 258 | F105: US 64 | G105: Construct US 64 Westbound off-Ramp | H105: 9 - Convert Grade Separation to Interchange | I105: 4578000 | J105: Upper Coastal Plain RPO | K105: Edgecombe | M105: 1.930835357 | O105: 0 | P105: 20 | Q105: 0 | R105: 0 | S105: 5 | T105: 6.930835357
V107: =SUM(V2:V106) -> 1700

Sheet Division Aviation
A1: SpotID | B1: Mode | C1: STI Network | D1: Specific Improvement Type | E1: Project Local ID | F1: Project Category | G1: Route Facility Name | H1: Project Title | I1: Project Description | J1: Estimated Total Project Cost | K1: Cost To NCDOT | L1: First MPO/RPO | M1: County | O1: Division Needs Quantitative Score | Q1: D4 Division Safety Score (35%) | R1: D4 Division Cost Effectiveness Score (20%) | S1: Division Transportation Plan Consistency (15%) | T1: Project Feasibility (30%) | U1: Total Methodology Score X 25% | V1: Methodology + Division Score | X1: Draft Division Assigned Points | Y1: Comments
A2: A130213 | B2: Aviation | C2: Division Needs | D2: 305 - Land Acquisition / Obstruction removal / Easement - RPZ | E2: 2147 | F2: Division Needs | G2: GWW - Wayne Executive Jetport | H2: LAND ACQUISITION | I2: Acquire approximately 35 acres of property in the RPZ (Runway Safety Zone) and transitional surface. (includes Project Request Numbers: 2147 ) | J2: 335000 | K2: 301500 | L2: Goldsboro MPO | M2: Wayne | O2: 36.85 | Q2: 0 | R2: 20 | S2: 15 | T2: 30 | U2: =SUM(Q2:T2)*0.25 -> 16.25 | V2: =O2+U2 -> 53.1 | X2: 100
A3: A130497 | B3: Aviation | C3: Division Needs | D3: 1010 - Land acquisition- Standard Instrument Approach Procedures (SIAP) | E3: 2767 | F3: Division Needs | G3: JNX - Johnston County Airport | H3: LAND ACQUISITION & CLEARING PROJECT | I3: Supplemental funding is needed to complete the project funded in 2012 with DOA No. 36237.28.10.3. Additional funds are required to purchase the aviation easement on the Underwood property. Sufficient funds were not available in the previous project due to the appraised value of the property. Clearing will be completed in the Runway 3 RPZ (Runway Protection Zone), on the recently purchased Johnson and Lee properties, and on the Underwood property. (includes Project Request Numbers: 2767 ) | J3: 335000 | K3: 301500 | L3: Upper Coastal Plain RPO | M3: Johnston | O3: 29.5 | Q3: 0 | R3: 20 | S3: 15 | T3: 30 | U3: 16.25 | V3: 45.75 | X3: 100
A4: A130173 | B4: Aviation | C4: Division Needs | D4: 1110 - Design | E4: 3013 | F4: Division Needs | G4: W40 - Mount Olive Municipal Airport | H4: COMPLETE PARALLEL TAXIWAY (DESIGN), COMPLETE NORTH PARALLEL TAXIWAY (CONSTRUCTION), COMPLETE SOUTH PARALLEL TAXIWAY (CONSTRUCTION) | I4: Construct a Parallel Taxiway including taxiway edge lighting. (includes Project Request Numbers: 3013/2330/2333 ) | J4: 1983000 | K4: 1784700 | L4: Eastern Carolina RPO | M4: Wayne | O4: 26.565 | Q4: 0 | R4: 20 | S4: 15 | T4: 30 | U4: 16.25 | V4: 42.815
A5: A130174 | B5: Aviation | C5: Division Needs | D5: 1210 - Design | E5: 2327 | F5: Division Needs | G5: W40 - Mount Olive Municipal Airport | H5: APRON EXPANSION | I5: Additional apron parking is needed. This project will provide approximately 6,700 sy. of new aircraft parking and 25 additional tiedown spots. Currently the airport only has 5 tie down positions since two were lost to the recent fuel system installation project. (includes Project Request Numbers: 2327 ) | J5: 460000 | K5: 414000 | L5: Eastern Carolina RPO | M5: Wayne | O5: 24.42 | Q5: 0 | R5: 20 | S5: 15 | T5: 30 | U5: 16.25 | V5: 40.67
A6: A130496 | B6: Aviation | C6: Division Needs | D6: 305 - Land Acquisition / Obstruction removal / Easement - RPZ | E6: 2162 | F6: Division Needs | G6: ETC - Tarboro-Edgecombe Airport | H6: LAND ACQUISITION - RUNWAY 9 LAND/HANGAR ACQUISITION - TERMINAL AREA LAND ACQUISITION - RUNWAY 9 | I6: Acquisition of approximately 4 acres and two dwellings in the Runway 9 transitional surface (North). Acquisition of approximately 5 acres and one dwelling in the Runway 9 transitional surface (South). This project consists of the acquisition of approximately 0.5 acres of property, which includes an existing hangar. Please note, the project sub-category is not accurate. (includes Project Request Numbers: 2162/3230/2161 ) | J6: 525000 | K6: 472500 | L6: Upper Coastal Plain RPO | M6: Edgecombe | O6: 12.46 | Q6: 0 | R6: 20 | S6: 15 | T6: 30 | U6: 16.25 | V6: 28.71
A7: A130175 | B7: Aviation | C7: Division Needs | D7: 1305 - Construct new terminal building | E7: 3008 | F7: Division Needs | G7: W40 - Mount Olive Municipal Airport | H7: NEW TERMINAL BUILDING | I7: The project includes the construction of a new terminal building to replace the existing terminal building that is in need of repair and updating. The existing terminal building does not meet the square footage recommendations included in North Carolina General Aviation Development Plan. (includes Project Request Numbers: 3008 ) | J7: 1300000 | K7: 1170000 | L7: Eastern Carolina RPO | M7: Wayne | O7: 9.74 | Q7: 0 | R7: 20 | S7: 15 | T7: 30 | U7: 16.25 | V7: 25.99
A8: A130418 | B8: Aviation | C8: Division Needs | D8: 1705 - Install MALS / MALSF / MALSR (for precision runway only) | E8: 2164 | F8: Division Needs | G8: IXA - Halifax Northampton Regional | H8: MALSR | I8: Install a MALSR (Medium-Intensity Approach Lighting System With Runway Alignment Indicator) system. Still awaiting Grant. (includes Project Request Numbers: 2164 ) | J8: 900000 | K8: 810000 | L8: Peanut Belt RPO | M8: Halifax | O8: 9.275 | Q8: 0 | R8: 20 | S8: 15 | T8: 30 | U8: 16.25 | V8: 25.525
A9: A130498 | B9: Aviation | C9: Division Needs | D9: 1110 - Design | E9: 2129 | F9: Division Needs | G9: JNX - Johnston County Airport | H9: REHAB AND WIDEN PARALLELL TAXIWAY & CONNECTORS | I9: The existing taxiway pavements will be approaching the end of their useful life and require pavement rehabilitation. Assumed design would include a 3" asphalt maintenance overlay. The taxiways will be widened to 50' at this time to conform to C- III standards. (includes Project Request Numbers: 2129 ) | J9: 3600000 | K9: 3240000 | L9: Upper Coastal Plain RPO | M9: Johnston | O9: 8.95 | Q9: 0 | R9: 20 | S9: 15 | T9: 30 | U9: 16.25 | V9: 25.2
A10: A130500 | B10: Aviation | C10: Division Needs | D10: 1710 - Rehabilitate / replace | E10: 2922 | F10: Division Needs | G10: JNX - Johnston County Airport | H10: UPGRADE & RENOVATE EXISTING MALSR SYSTEM | I10: The existing MALSR (Medium-Intensity Approach Lighting System With Runway Alignment Indicator) system was installed in 1996 and is approaching the end of its lifecycle. The upgrade project will include upgrade of fixtures and replacement of all existing circuits and the repair/painting of all poles and towers. (includes Project Request Numbers: 2922 ) | J10: 545000 | K10: 490500 | L10: Upper Coastal Plain RPO | M10: Johnston | O10: 8.95 | Q10: 0 | R10: 20 | S10: 15 | T10: 30 | U10: 16.25 | V10: 25.2
A11: A130211 | B11: Aviation | C11: Division Needs | D11: 210 - Construct, expand, or repair | E11: 3042 | F11: Division Needs | G11: GWW - Wayne Executive Jetport | H11: RUNWAY SAFETY AREA IMPROVEMENTS | I11: This project includes cleaning and piping any ditches found not to be jurisdictional, and bringing the safety areas up to standards. (includes Project Request Numbers: 3042 ) | J11: 985000 | K11: 886500 | L11: Goldsboro MPO | M11: Wayne | O11: 8.5 | Q11: 0 | R11: 20 | S11: 15 | T11: 30 | U11: 16.25 | V11: 24.75
A12: A130210 | B12: Aviation | C12: Division Needs | D12: 1315 - Construct addition to existing building | E12: 2146 | F12: Division Needs | G12: GWW - Wayne Executive Jetport | H12: TERMINAL BLDG AND PARKING CONSTUCTION | I12: Expand the existing terminal building, parking, and access road. (includes Project Request Numbers: 2146 ) | J12: 3600250 | K12: 3240225 | L12: Goldsboro MPO | M12: Wayne | O12: 8.39 | Q12: 0 | R12: 20 | S12: 15 | T12: 30 | U12: 16.25 | V12: 24.64
A13: A130419 | B13: Aviation | C13: Division Needs | D13: 2100 - Hangers and Economic Development | E13: 2788 | F13: Division Needs | G13: IXA - Halifax Northampton Regional | H13: T-HANGAR TAXILANE | I13: Construction of taxilane and site preparation for additional T-Hangars. (includes Project Request Numbers: 2788 ) | J13: 350000 | K13: 315000 | L13: Peanut Belt RPO | M13: Halifax | O13: 8.04 | Q13: 0 | R13: 20 | S13: 15 | T13: 30 | U13: 16.25 | V13: 24.29
A14: A130179 | B14: Aviation | C14: Division Needs | D14: 525 - Design | E14: 3011 | F14: Division Needs | G14: W40 - Mount Olive Municipal Airport | H14: EXTENSION/DISPLACED THRESHOLD RUNWAY 5 TO 5,500' RUNWAY LENGTH | I14: Project includes design and construction of a 245' extension and displaced threshold to provide the airport with a runway length of 5,500' (includes Project Request Numbers: 3011 ) | J14: 260000 | K14: 234000 | L14: Eastern Carolina RPO | M14: Wayne | O14: 7.595 | Q14: 0 | R14: 20 | S14: 15 | T14: 30 | U14: 16.25 | V14: 23.845
A15: A130180 | B15: Aviation | C15: Division Needs | D15: 605 - Runway Overlay | E15: 3012 | F15: Division Needs | G15: W40 - Mount Olive Municipal Airport | H15: RUNWAY WIDENING & STRENGTHENING TO 47,500 #DW | I15: Project includes strengthening Airfield Pavement to accommodate Aircraft up to 47,500 lb. dual wheel. (includes Project Request Numbers: 3012 ) | J15: 1050000 | K15: 945000 | L15: Eastern Carolina RPO | M15: Wayne | O15: 7.595 | Q15: 0 | R15: 20 | S15: 15 | T15: 30 | U15: 16.25 | V15: 23.845
A16: A130501 | B16: Aviation | C16: Division Needs | D16: 1910 - Acquire Equipment Shelter (no utilities provided) | E16: 2131 | F16: Division Needs | G16: JNX - Johnston County Airport | H16: AIRFIELD MAINTENANCE STORAGE BUILDING | I16: The Airport desires to construct a 3,200 SF Maintenance Storage Building to house and extend the life of airport maintenance equipment. (includes Project Request Numbers: 2131 ) | J16: 465675 | K16: 419107.5 | L16: Upper Coastal Plain RPO | M16: Johnston | O16: 6.86 | Q16: 0 | R16: 20 | S16: 15 | T16: 30 | U16: 16.25 | V16: 23.11
A17: A130422 | B17: Aviation | C17: Division Needs | D17: 3000 - Other | E17: 2165 | F17: Division Needs | G17: IXA - Halifax Northampton Regional | H17: ACCESS ROAD | I17: Construct new Access road, taxiway and small apron for corporate development of the LSA facility. Still awaiting Grant. (includes Project Request Numbers: 2165 ) | J17: 405000 | K17: 364500 | L17: Peanut Belt RPO | M17: Halifax | O17: 6.71 | Q17: 0 | R17: 20 | S17: 15 | T17: 30 | U17: 16.25 | V17: 22.96
A18: A130417 | B18: Aviation | C18: Division Needs | D18: 1225 - Clearing / Grading / Drainage / Paving / Marking / Edge Lighting / Signage | E18: 2170 | F18: Division Needs | G18: IXA - Halifax Northampton Regional | H18: CORP APRON EXPANSION-PHASE II | I18: Construction of taxilane and apron for corporate hangar development and site preparation for 6 corporate hangars and associated parking lots. (includes Project Request Numbers: 2170 ) | J18: 715000 | K18: 643500 | L18: Peanut Belt RPO | M18: Halifax | O18: 6.675 | Q18: 0 | R18: 20 | S18: 15 | T18: 30 | U18: 16.25 | V18: 22.925
A19: A130503 | B19: Aviation | C19: Division Needs | D19: 3000 - Other | E19: 2923 | F19: Division Needs | G19: JNX - Johnston County Airport | H19: UPGRADE & RENOVATE EXISTING AIRCRAFT FUEL STORAGE FACILITY | I19: The aircraft fuel system project includes removal and replacement of the existing system, which was originally installed in the mid-1990s. The project will include one 15,000 gallon AV Gas tank, one 20,000 gallon Jet-A tank, and one 300 gallon auto gas tank for airport maintenance vehicles. Also included in the project is a new cover/roof for the entire fuel farm. (includes Project Request Numbers: 2923 ) | J19: 520000 | K19: 468000 | L19: Upper Coastal Plain RPO | M19: Johnston | O19: 6.3 | Q19: 0 | R19: 20 | S19: 15 | T19: 30 | U19: 16.25 | V19: 22.55
A20: A130499 | B20: Aviation | C20: Division Needs | D20: 1240 - Corporate and T-hanger Taxiways | E20: 2127 | F20: Division Needs | G20: JNX - Johnston County Airport | H20: CORPORATE AREA DEVELOPMENT - PHASE I | I20: This project provides for construction of Phase I of the new corporate area development. Phase I will include the construction of a new t-hangar area and construction of a new apron. Elements of construction will include clearing and grubbing, grading and drainage, paving, and erosion control measures. (includes Project Request Numbers: 2127 ) | J20: 4015295 | K20: 3613765.5 | L20: Upper Coastal Plain RPO | M20: Johnston | O20: 6.26 | Q20: 0 | R20: 20 | S20: 15 | T20: 30 | U20: 16.25 | V20: 22.51
A21: A130502 | B21: Aviation | C21: Division Needs | D21: 2100 - Hangers and Economic Development | E21: 2921 | F21: Division Needs | G21: JNX - Johnston County Airport | H21: CORPORATE HANGAR (80' X 80') | I21: This project will include the design and construction of an 80' x 80' corporate hangar in the vicinity of the current corporate area. (includes Project Request Numbers: 2921 ) | J21: 500000 | K21: 450000 | L21: Upper Coastal Plain RPO | M21: Johnston | O21: 6.26 | Q21: 0 | R21: 20 | S21: 15 | T21: 30 | U21: 16.25 | V21: 22.51
A22: A130495 | B22: Aviation | C22: Division Needs | D22: 3000 - Other | E22: 2158 | F22: Division Needs | G22: ETC - Tarboro-Edgecombe Airport | H22: RUNWAY WIDENING | I22: Runway Widening from 50' to 75'. (includes Project Request Numbers: 2158 ) | J22: 792000 | K22: 712800 | L22: Upper Coastal Plain RPO | M22: Edgecombe | O22: 6.2 | Q22: 0 | R22: 20 | S22: 15 | T22: 30 | U22: 16.25 | V22: 22.45
A23: A130504 | B23: Aviation | C23: Division Needs | D23: 3000 - Other | E23: 2926 | F23: Division Needs | G23: JNX - Johnston County Airport | H23: NEW VEHICULAR ACCESS & AUTO PARKING | I23: This project will include the design and construction for a 20 vehicle parking lot with paved access to Swift Creek Road in the vicinity of the main ramp area.. (includes Project Request Numbers: 2926 ) | J23: 205000 | K23: 184500 | L23: Upper Coastal Plain RPO | M23: Johnston | O23: 6.18 | Q23: 0 | R23: 20 | S23: 15 | T23: 30 | U23: 16.25 | V23: 22.43
A24: A130212 | B24: Aviation | C24: Division Needs | D24: 3000 - Other | E24: 2148 | F24: Division Needs | G24: GWW - Wayne Executive Jetport | H24: CORP HANG ACCESS ROAD | I24: Construct an access road for the corporate hangar area (includes Project Request Numbers: 2148 ) | J24: 162500 | K24: 146250 | L24: Goldsboro MPO | M24: Wayne | O24: 5.9 | Q24: 0 | R24: 20 | S24: 15 | T24: 30 | U24: 16.25 | V24: 22.15
A25: A130436 | B25: Aviation | C25: Division Needs | D25: 2100 - Hangers and Economic Development | E25: 2317 | F25: Division Needs | G25: RWI - Rocky Mount-Wilson Region | H25: NEW HANGAR AREA DEVELOPMENT - PHASE I T-HANGAR AREA SITE PREPARATION & PAVING T-HANGAR BUILDING AVIATION DRIVE & HANGAR ACCESS ROADWAY EXTENSION | I25: This project will consist of three phases; Construction of a portion of new parallel taxiway and a taxilane to the new hangar area development; Site preparation and paving for a 10 unit t-hangar site; Construction of a 10 unit t-hangar. There are currently no t-hangar units at the airport. This project will extend the existing north corporate access road to the new north corporate development area and to aviation drive. (includes Project Request Numbers: 2317/2319/2320/2853 ) | J25: 2550000 | K25: 2295000 | L25: Rocky Mount MPO | M25: Nash | O25: 5.56 | Q25: 0 | R25: 20 | S25: 15 | T25: 30 | U25: 16.25 | V25: 21.81
A26: A130434 | B26: Aviation | C26: Division Needs | D26: 2100 - Hangers and Economic Development | E26: 2318 | F26: Division Needs | G26: RWI - Rocky Mount-Wilson Region | H26: NEW HANGAR AREA DEVELOPMENT - PHASE II | I26: Phase II - This project will include the construction of a portion of new parallel taxiway and a taxilane to the new hangar area development. This project will consist of three phases. (includes Project Request Numbers: 2318 ) | J26: 840000 | K26: 756000 | L26: Rocky Mount MPO | M26: Nash | O26: 4.96 | Q26: 0 | R26: 20 | S26: 15 | T26: 30 | U26: 16.25 | V26: 21.21
A27: A130435 | B27: Aviation | C27: Division Needs | D27: 2100 - Hangers and Economic Development | E27: 2324 | F27: Division Needs | G27: RWI - Rocky Mount-Wilson Region | H27: NEW HANGAR AREA DEVELOPMENT PHASE III | I27: Phase III - This project will include the construction of a portion of new parallel taxiway and a taxilane to the new hangar area development. This project will consist of three phases. (includes Project Request Numbers: 2324 ) | J27: 685000 | K27: 616500 | L27: Rocky Mount MPO | M27: Nash | O27: 4.96 | Q27: 0 | R27: 20 | S27: 15 | T27: 30 | U27: 16.25 | V27: 21.21
A28: A130420 | B28: Aviation | C28: Division Needs | D28: 2100 - Hangers and Economic Development | E28: 2789 | F28: Division Needs | G28: IXA - Halifax Northampton Regional | H28: CONSTRUCT T-HANGARS | I28: Construction of one 10 unit T-Hangar building. (includes Project Request Numbers: 2789 ) | J28: 575000 | K28: 517500 | L28: Peanut Belt RPO | M28: Halifax | O28: 4.66 | Q28: 0 | R28: 20 | S28: 15 | T28: 30 | U28: 16.25 | V28: 20.91
A29: A130421 | B29: Aviation | C29: Division Needs | D29: 2100 - Hangers and Economic Development | E29: 2791 | F29: Division Needs | G29: IXA - Halifax Northampton Regional | H29: MAINTENANCE HANGAR | I29: Construction of a 100' X 120' aircraft maintenance hanger. (includes Project Request Numbers: 2791 ) | J29: 800000 | K29: 720000 | L29: Peanut Belt RPO | M29: Halifax | O29: 4.66 | Q29: 0 | R29: 20 | S29: 15 | T29: 30 | U29: 16.25 | V29: 20.91
A30: A130176 | B30: Aviation | C30: Division Needs | D30: 1910 - Acquire Equipment Shelter (no utilities provided) | E30: 2335 | F30: Division Needs | G30: W40 - Mount Olive Municipal Airport | H30: AIRFIELD MAINTENANCE EQUIPMENT AND STORAGE BUILDING | I30: Purchase a tractor with mowing attachments and 40'x60' storage building. (includes Project Request Numbers: 2335 ) | J30: 280000 | K30: 252000 | L30: Eastern Carolina RPO | M30: Wayne | O30: 3.76 | Q30: 0 | R30: 20 | S30: 15 | T30: 30 | U30: 16.25 | V30: 20.01
A31: A130177 | B31: Aviation | C31: Division Needs | D31: 2100 - Hangers and Economic Development | E31: 2338 | F31: Division Needs | G31: W40 - Mount Olive Municipal Airport | H31: T-HANGARS AND T-HANGAR TAXIWAY | I31: This project will construct a 10-unit t-hangar and associated taxiways. (includes Project Request Numbers: 2338 ) | J31: 1080000 | K31: 972000 | L31: Eastern Carolina RPO | M31: Wayne | O31: 3.76 | Q31: 0 | R31: 20 | S31: 15 | T31: 30 | U31: 16.25 | V31: 20.01
A32: A130178 | B32: Aviation | C32: Division Needs | D32: 2100 - Hangers and Economic Development | E32: 3009 | F32: Division Needs | G32: W40 - Mount Olive Municipal Airport | H32: MAINTENANCE HANGAR | I32: Project includes design and construction of a new 120' x 120' maintenance hangar. (includes Project Request Numbers: 3009 ) | J32: 870000 | K32: 783000 | L32: Eastern Carolina RPO | M32: Wayne | O32: 3.76 | Q32: 0 | R32: 20 | S32: 15 | T32: 30 | U32: 16.25 | V32: 20.01
A33: A130494 | B33: Aviation | C33: Division Needs | D33: 2100 - Hangers and Economic Development | E33: 2898 | F33: Division Needs | G33: ETC - Tarboro-Edgecombe Airport | H33: CORPORATE APRON EXPANSION AND HANGAR | I33: Expand the Corporate Apron by 8,350 SF and construct a 70' X 80' Hangar. (includes Project Request Numbers: 2898 ) | J33: 570000 | K33: 513000 | L33: Upper Coastal Plain RPO | M33: Edgecombe | O33: 3.56 | Q33: 0 | R33: 20 | S33: 15 | T33: 30 | U33: 16.25 | V33: 19.81
X34: =SUM(X2:X33) -> 200

Sheet Division BikePed
A1: SPOT ID | B1: Project Category | C1: TIP | D1: Route | E1: From / Cross Street | F1: To | G1: Description | H1: Project Length | I1: Specific Improvement Type | J1: Actual Project Cost | K1: Cost to NCDOT | L1: All MPOs/RPOs | M1: All Counties | O1: Division Needs Quantitative Score (Out of 50) | Q1: D4 Division Safety Score (35%) | R1: D4 Division Cost Effectiveness (20%) | S1: Division Transportation Plan Consistency (15%) | T1: Project Feasibility (30%) | U1: Total Methodology Score X 25% | V1: Methodology + Division Score | X1: Draft Division Assigned Points | Y1: Comments
A2: B141805 | B2: Bike&Ped, Division Needs | D2: Stoney Creek Greenway | E2: Hwy 70 Bypass (existing) | F2: Royall Avenue | G2: Construct 10' wide asphalt along west side of Stoney Creek | H2: 0.39142253 | I2: 2. Construct multi-use trail / greenway / sidepath or on-road bike lane on local roadway | J2: 125000 | K2: 125000 | L2: Goldsboro Urban Area MPO | M2: Wayne County | O2: 37.05185743 | Q2: 26.25 | R2: 20 | S2: 15 | T2: 30 | U2: =SUM(Q2:T2)*0.25 -> 22.8125 | V2: =O2+U2 -> 59.86435743 | X2: 50
A3: B140895 | B3: Bike&Ped, Division Needs | D3: Multiple intersections | E3: May Drive | F3: Church Street | G3: Install pedestrian signals at 5 intersections | H3: 1.70347713 | I3: 6. Install pedestrian signal | J3: 150000 | K3: 150000 | L3: Rocky Mount Urban Area MPO | M3: Nash County | O3: 35.57643299 | Q3: 17.5 | R3: 20 | S3: 15 | T3: 30 | U3: 20.625 | V3: 56.20143299 | X3: 50
A4: B141825 | B4: Bike&Ped, Division Needs | D4: Royall Avenue | E4: Spence Ave | F4: Berkeley Blvd | G4: Construct new sidewalk on north side | H4: 0.87327936 | I4: 5. Construct Sidewalk | J4: 200000 | K4: 200000 | L4: Goldsboro Urban Area MPO | M4: Wayne County | O4: 29.40777511 | Q4: 26.25 | R4: 20 | S4: 15 | T4: 30 | U4: 22.8125 | V4: 52.22027511 | X4: 50
A5: B141785 | B5: Bike&Ped, Division Needs | D5: Spence Ave | E5: existing US 70 Bypass | F5: US 70 Business (Ash Street) | G5: Construct new sidewalk on both sides. | H5: 1.5010375 | I5: 5. Construct Sidewalk | J5: 600000 | K5: 600000 | L5: Goldsboro Urban Area MPO | M5: Wayne County | O5: 28.53221289 | Q5: 17.5 | R5: 20 | S5: 15 | T5: 30 | U5: 20.625 | V5: 49.15721289 | X5: 50
A6: B141808 | B6: Bike&Ped, Division Needs | D6: Stoney Creek Greenway | E6: Hwy 70 Bypass (existing) | G6: Construct bridge over existing Hwy 70 along Stoney Creek | H6: 0.087544 | I6: 2. Construct multi-use trail / greenway / sidepath or on-road bike lane on local roadway | J6: 3125000 | K6: 3125000 | L6: Goldsboro Urban Area MPO | M6: Wayne County | O6: 28.42736132 | Q6: 35 | R6: 0 | S6: 15 | T6: 30 | U6: 20 | V6: 48.42736132 | Y6: Too costly at Division Level
A7: B141841 | B7: Bike&Ped, Division Needs | D7: Herman Street | E7: Royall Ave | F7: Beech Street | G7: Construct new sidewalk on both sides. | H7: 0.60780526 | I7: 5. Construct Sidewalk | J7: 133920 | K7: 124000 | L7: Goldsboro Urban Area MPO | M7: Wayne County | O7: 27.32077583 | Q7: 8.75 | R7: 20 | S7: 15 | T7: 30 | U7: 18.4375 | V7: 45.75827583 | X7: 50
A8: B140931 | B8: Bike&Ped, Division Needs | D8: NC 58 | E8: Glover Park | F8: South Creek | G8: Construct sidewalk | H8: 0.51640455 | I8: 5. Construct Sidewalk | J8: 125000 | K8: 120000 | L8: Rocky Mount Urban Area MPO | M8: Nash County | O8: 26.90629384 | Q8: 8.75 | R8: 20 | S8: 15 | T8: 30 | U8: 18.4375 | V8: 45.34379384 | X8: 50
A9: B141030 | B9: Bike&Ped, Division Needs | D9: Atlantic Ave | E9: US 64 | F9: E. Raleigh Blvd | G9: Construct streetscape improvements | H9: 1.60473534 | I9: 7. Construct Streetscape Improvements | J9: 4250000 | K9: 4200000 | L9: Rocky Mount Urban Area MPO | M9: Edgecombe County | O9: 25.33011189 | Q9: 17.5 | R9: 15 | S9: 15 | T9: 30 | U9: 19.375 | V9: 44.70511189
A10: B140929 | B10: Bike&Ped, Division Needs | D10: Cowlick Trail | E10: Leggett Road | F10: Holly Street Park | G10: Construct new greenway trail | H10: 0.92420211 | I10: 2. Construct multi-use trail / greenway / sidepath or on-road bike lane on local roadway | J10: 550000 | K10: 500000 | L10: Rocky Mount Urban Area MPO | M10: Edgecombe County | O10: 23.75457142 | Q10: 17.5 | R10: 20 | S10: 15 | T10: 30 | U10: 20.625 | V10: 44.37957142
A11: B141678 | B11: Bike&Ped, Division Needs | D11: Royall Avenue | E11: William Street | F11: Spence Avenue | G11: Construct new sidewalk on north side. | H11: 2.38252108 | I11: 5. Construct Sidewalk | J11: 476000 | K11: 476000 | L11: Goldsboro Urban Area MPO | M11: Wayne County | O11: 23.66631175 | Q11: 17.5 | R11: 20 | S11: 15 | T11: 30 | U11: 20.625 | V11: 44.29131175
A12: B141034 | B12: Bike&Ped, Division Needs | D12: West Raleigh Blvd | E12: Wesleyan Blvd | F12: Franklin Street | G12: Construct streetscape improvements | H12: 2.48064503 | I12: 7. Construct Streetscape Improvements | J12: 4300000 | K12: 4200000 | L12: Rocky Mount Urban Area MPO | M12: Nash County | O12: 21.39503951 | Q12: 26.25 | R12: 20 | S12: 15 | T12: 30 | U12: 22.8125 | V12: 44.20753951
A13: B141038 | B13: Bike&Ped, Division Needs | D13: Church Street | E13: US 64 | F13: Raleigh Blvd overpass | G13: Construct streetscape improvements | H13: 1.68504273 | I13: 7. Construct Streetscape Improvements | J13: 2250000 | K13: 2200000 | L13: Rocky Mount Urban Area MPO | M13: Nash County | O13: 25.35496514 | Q13: 8.75 | R13: 20 | S13: 15 | T13: 30 | U13: 18.4375 | V13: 43.79246514
A14: B141031 | B14: Bike&Ped, Division Needs | D14: East Raleigh Blvd | E14: US 64 | F14: Arlington Street | G14: Streetscape improvements | H14: 2.18655543 | I14: 7. Construct Streetscape Improvements | J14: 3300000 | K14: 3200000 | L14: Rocky Mount Urban Area MPO | M14: Edgecombe County | O14: 23.10492877 | Q14: 17.5 | R14: 20 | S14: 15 | T14: 30 | U14: 20.625 | V14: 43.72992877
A15: B141690 | B15: Bike&Ped, Division Needs | D15: Berkeley Boulevard | E15: Ash Street | F15: Elm Street | G15: Construct new sidewalk on both sides | H15: 0.98082378 | I15: 5. Construct Sidewalk | J15: 136000 | K15: 136000 | L15: Goldsboro Urban Area MPO | M15: Wayne County | O15: 25.20267376 | Q15: 0 | R15: 20 | S15: 15 | T15: 30 | U15: 16.25 | V15: 41.45267376
A16: B140898 | B16: Bike&Ped, Division Needs | D16: Rail To Trail | E16: Franklin Street | F16: Falls Road | G16: convert abandoned RR to multi-use trail | H16: 1.06967478 | I16: 2. Construct multi-use trail / greenway / sidepath or on-road bike lane on local roadway | J16: 3175000 | K16: 3100000 | L16: Rocky Mount Urban Area MPO | M16: Nash County | O16: 23.04981828 | Q16: 17.5 | R16: 10 | S16: 15 | T16: 30 | U16: 18.125 | V16: 41.17481828
A17: B141809 | B17: Bike&Ped, Division Needs | D17: Central Heights Road | E17: Berkeley Blvd | F17: New Hope Road | G17: Construct new sidewalk on both sides | H17: 1.77638649 | I17: 5. Construct Sidewalk | J17: 704000 | K17: 704000 | L17: Goldsboro Urban Area MPO | M17: Wayne County | O17: 19.96135231 | Q17: 17.5 | R17: 20 | S17: 15 | T17: 30 | U17: 20.625 | V17: 40.58635231
A18: B141003 | B18: Bike&Ped, Division Needs | D18: Nashville Road and others | E18: Hammond Street | F18: West Raleigh Blvd | G18: Construct sidewalk on Nashville Rd, W. Raleigh Blvd, E. Raleigh Blvd, Winstead Ave Project and Parallel routes are the same | H18: 2.49081243 | I18: 5. Construct Sidewalk | J18: 535000 | K18: 520000 | L18: Rocky Mount Urban Area MPO | M18: Nash County, Edgecombe County | O18: 19.58749259 | Q18: 17.5 | R18: 20 | S18: 15 | T18: 30 | U18: 20.625 | V18: 40.21249259
A19: B140957 | B19: Bike&Ped, Division Needs | C19: C-5548 | D19: Franklin Street and other locations | E19: RR | F19: W. Raleigh Blvd | G19: Construct sidewalk at 7 locations. B140935 and B140957 combine for TIP C-5548 Parallel route is same as project route. https://goo.gl/maps/vZkMf Church St 35 mph https://goo.gl/maps/2kV0Q Falls Rd 35 mph https://goo.gl/maps/7K79S Country Club 35 mph | H19: 1.21933537 | I19: 2. Construct multi-use trail / greenway / sidepath or on-road bike lane on local roadway | J19: 600000 | K19: 550000 | L19: Rocky Mount Urban Area MPO | M19: Edgecombe County, Nash County | O19: 19.05877869 | Q19: 17.5 | R19: 20 | S19: 15 | T19: 30 | U19: 20.625 | V19: 39.68377869
A20: B141924 | B20: Bike&Ped, Division Needs | D20: Mountains to Sea Trail | E20: US 117 | F20: Slocumb Street | G20: Construct multi-use path of a combination of natural surface path sidewalk and 10' wide asphalt greenway. Future phase from Slocumb Street to Cliff of the Neuse State Park | H20: 4.77763646 | I20: 2. Construct multi-use trail / greenway / sidepath or on-road bike lane on local roadway | J20: 5000000 | K20: 5000000 | L20: Goldsboro Urban Area MPO | M20: Wayne County | O20: 18.71891203 | Q20: 17.5 | R20: 20 | S20: 15 | T20: 30 | U20: 20.625 | V20: 39.34391203
A21: B141554 | B21: Bike&Ped, Division Needs | D21: Wayne Memorial Drive | E21: SR 1003 (New Hope Road) | F21: SR 1571 (Tommy's Road) | G21: Construct Paved Shoulder | H21: 1.05112335 | I21: 3. Add or widen paved shoulder | J21: 400000 | K21: 400000 | L21: Goldsboro Urban Area MPO | M21: Wayne County | O21: 20.65682654 | Q21: 8.75 | R21: 20 | S21: 15 | T21: 30 | U21: 18.4375 | V21: 39.09432654
A22: B141834 | B22: Bike&Ped, Division Needs | D22: Elm Street | E22: Slocumb Street | F22: Berkeley Blvd | G22: Construct new sidewalk on both sides | H22: 1.15945492 | I22: 5. Construct Sidewalk | J22: 864000 | K22: 800000 | L22: Goldsboro Urban Area MPO | M22: Wayne County | O22: 18.25930351 | Q22: 17.5 | R22: 20 | S22: 15 | T22: 30 | U22: 20.625 | V22: 38.88430351
A23: B141803 | B23: Bike&Ped, Division Needs | D23: Stoney Creek Greenway | E23: Elm Street | F23: Slocumb Street | G23: Construct 10' wide asphalt/boardwalk along west side of Stoney Creek. | H23: 1.60513783 | I23: 2. Construct multi-use trail / greenway / sidepath or on-road bike lane on local roadway | J23: 2025000 | K23: 1875000 | L23: Goldsboro Urban Area MPO | M23: Wayne County | O23: 15.40198848 | Q23: 8.75 | R23: 20 | S23: 15 | T23: 30 | U23: 18.4375 | V23: 33.83948848
A24: B141578 | B24: Bike&Ped, Division Needs | D24: Berkeley Blvd | E24: Tommy's Road | F24: New Hope Road | G24: Construct Paved Shoulder | H24: 1.05112335 | I24: 3. Add or widen paved shoulder | J24: 832000 | K24: 832000 | L24: Goldsboro Urban Area MPO | M24: Wayne County | O24: 16.5478907 | Q24: 8.75 | R24: 15 | S24: 15 | T24: 30 | U24: 17.1875 | V24: 33.7353907
A25: B141681 | B25: Bike&Ped, Division Needs | D25: Harris Street | E25: Slocumb Street | F25: Stoney Creek Parkway | G25: Construct new sidewalk on south side | H25: 0.25623691 | I25: 5. Construct Sidewalk | J25: 224000 | K25: 224000 | L25: Goldsboro Urban Area MPO | M25: Wayne County | O25: 16.76800028 | Q25: 0 | R25: 20 | S25: 15 | T25: 30 | U25: 16.25 | V25: 33.01800028
A26: B140928 | B26: Bike&Ped, Division Needs | D26: Tar River Trail Extension | E26: Stith Park | F26: Springfield Road | G26: Extend Tar River Trail to Springfield Road | H26: 2.60332926 | I26: 2. Construct multi-use trail / greenway / sidepath or on-road bike lane on local roadway | J26: 925000 | K26: 825000 | L26: Rocky Mount Urban Area MPO | M26: Edgecombe County | O26: 19.84008063 | Q26: 17.5 | R26: 20 | S26: 15 | T26: 0 | U26: 13.125 | V26: 32.96508063
A27: B141596 | B27: Bike&Ped, Division Needs | D27: NC 581 | E27: George Street | F27: Rosewood Road | G27: Construct Paved Shoulder | H27: 12.90880931 | I27: 3. Add or widen paved shoulder | J27: 3379200 | K27: 3379200 | L27: Goldsboro Urban Area MPO | M27: Wayne County | O27: 14.45614211 | Q27: 8.75 | R27: 20 | S27: 15 | T27: 30 | U27: 18.4375 | V27: 32.89364211
A28: B141826 | B28: Bike&Ped, Division Needs | D28: John Street | E28: Elm Street | F28: Dixie Trail | G28: Construct new sidewalk along east side | H28: 2.77688926 | I28: 5. Construct Sidewalk | J28: 285920 | K28: 285920 | L28: Goldsboro Urban Area MPO | M28: Wayne County | O28: 16.61478245 | Q28: 0 | R28: 20 | S28: 15 | T28: 30 | U28: 16.25 | V28: 32.86478245
A29: B141590 | B29: Bike&Ped, Division Needs | D29: Old Mt. Olive Hwy | E29: US 117 | F29: Parker Road | G29: Construct Paved Shoulder | H29: 14.48859107 | I29: 3. Add or widen paved shoulder | J29: 4480000 | K29: 4480000 | L29: Goldsboro Urban Area MPO, East Carolina RPO | M29: Wayne County | O29: 13.42192306 | Q29: 8.75 | R29: 20 | S29: 15 | T29: 30 | U29: 18.4375 | V29: 31.85942306
A30: B140926 | B30: Bike&Ped, Division Needs | D30: Elm City Sidewalk Project | E30: Elementary School | F30: Middle School | G30: Construct sidewalks along Toisnot St, W Main St, Parker St, Church St, and Branch St which connects to Elm City Elem School and Elm City Middle School | H30: 1.43009898 | I30: 5. Construct Sidewalk | J30: 115000 | K30: 91200 | L30: Upper Coastal Plain RPO | M30: Wilson County | O30: 13.49817547 | Q30: 0 | R30: 20 | S30: 15 | T30: 30 | U30: 16.25 | V30: 29.74817547
A31: B141551 | B31: Bike&Ped, Division Needs | D31: Central Heights Road | E31: US 13 (Berkeley Blvd) | F31: SR 1003 (New Hope Road) | G31: Construct Paved Shoulder | H31: 3.55277298 | I31: 3. Add or widen paved shoulder | J31: 1126400 | K31: 1126400 | L31: Goldsboro Urban Area MPO | M31: Wayne County | O31: 10.43303169 | Q31: 0 | R31: 20 | S31: 15 | T31: 30 | U31: 16.25 | V31: 26.68303169
A32: B141586 | B32: Bike&Ped, Division Needs | D32: Tommy's Road | E32: Berkeley Blvd | F32: Patetown Road | G32: Construct Paved Shoulder | H32: 7.7559237 | I32: 3. Add or widen paved shoulder | J32: 2560000 | K32: 2560000 | L32: Goldsboro Urban Area MPO | M32: Wayne County | O32: 9.516867664 | Q32: 0 | R32: 20 | S32: 15 | T32: 30 | U32: 16.25 | V32: 25.76686766
A33: B141562 | B33: Bike&Ped, Division Needs | D33: New Hope Road | E33: Wayne Memorial Drive | F33: Patetown Road | G33: Construct Multi-Use Path which would be a continuation of an existing multi-use path along New Hope Road which is a state maintained road. | H33: 1.34563838 | I33: 2. Construct multi-use trail / greenway / sidepath or on-road bike lane on local roadway | J33: 1254000 | K33: 1179000 | L33: Goldsboro Urban Area MPO | M33: Wayne County | O33: 13.04017447 | Q33: 8.75 | R33: 15 | S33: 15 | T33: 0 | U33: 9.6875 | V33: 22.72767447
A34: B140932 | B34: Bike&Ped, Division Needs | D34: First Street Extension (Red Oak Hwy) | E34: Cedar Street | F34: Indian Trail | G34: Construct sidewalk | H34: 0.72912847 | I34: 5. Construct Sidewalk | J34: 220000 | K34: 210000 | L34: Rocky Mount Urban Area MPO | M34: Nash County | O34: 11.67230792 | Q34: 0 | R34: 20 | S34: 15 | T34: 0 | U34: 8.75 | V34: 20.42230792
X35: =SUM(X2:X34) -> 300

Sheet Division Public Transportation
A1: SpotID | B1: Route Facility Name | C1: NCDOT Division | D1: Project Type | E1: Specific Project Improvement Type | F1: Project Category | G1: Project Description | H1: Total Project Cost | I1: State Share | J1: Local Share | K1: Federal Share | L1: First MPO/RPO | M1: County | O1: Division Needs Total Score | Q1: Safety Division Score (35%) | R1: Cost Effectiveness Division Score (20%) | S1: Transportation Plan Consistency Division Score (15%) | T1: Project Feasibility Division Score (30%) | U1: Total Methodology Score X 25% | V1: Methodology + Division Score | X1: Draft Division Assigned Points | Y1: Comments
A2: T130137 | B2: Wilson co fy16 vehicle expansion | C2: 4 | D2: Expansion Vehicle | E2: Expansion-Demand Response | F2: Division Needs | G2: Project #1 - Wilson County services the residents of Wilson as well those in the county. Wilson County operates 24 hours a day Monday through Friday with limited services on weekends. Wilson County provides transportation services for eight(8) service agencies within Wilson County. | H2: 56500 | I2: 5650 | J2: 5650 | K2: 45200 | L2: Upper Coastal Plain RPO | M2: Wilson | O2: 5.37 | Q2: 0 | R2: 0 | S2: 15 | T2: 30 | U2: =SUM(Q2:T2)*0.25 -> 11.25 | V2: =O2+U2 -> 16.62 | Y2: Cost Too Low to Justify Use of Division Points
A3: T130098 | B3: Johnston Co fy20 expansion vehicle | C3: 4 | D3: Expansion Vehicle | E3: Expansion-Demand Response | F3: Division Needs | G3: JCATS currently operates a fleet of 31 vehicles. Due to increasing demand, our vehicles are wearing out at a faster rate than we are replacing them, and so, we have fallen behind the curve. We need to add 1 expansion vehicle to include 1 van w/ wheelchair lift. | H3: 56026 | I3: 5602 | J3: 5603 | K3: 44821 | L3: Upper Coastal Plain RPO | M3: Johnston | O3: 4.63 | Q3: 0 | R3: 0 | S3: 15 | T3: 30 | U3: 11.25 | V3: 15.88 | Y3: Cost Too Low to Justify Use of Division Points
A4: T130102 | B4: Johnston Co fy19 expansion vehicle | C4: 4 | D4: Expansion Vehicle | E4: Expansion-Demand Response | F4: Division Needs | G4: JCATS currently operates a fleet of 31 vehicles. Due to increasing demand, our vehicles are wearing out at a faster rate than we are replacing them, and so, we have fallen behind the curve. We need to add 1 expansion vehicle to include a lift van w/ wheelchair lift. | H4: 29132 | I4: 5601 | J4: 5603 | K4: 17928 | L4: Upper Coastal Plain RPO | M4: Johnston | O4: 4.63 | Q4: 0 | R4: 0 | S4: 15 | T4: 30 | U4: 11.25 | V4: 15.88 | Y4: Cost Too Low to Justify Use of Division Points
A5: T130099 | B5: Johnston County fy16 expansion vehicle | C5: 4 | D5: Expansion Vehicle | E5: Expansion-Demand Response | F5: Division Needs | G5: JCATS currently operates a fleet of 31 vehicles. Due to increasing demand, our vehicles are wearing out at a faster rate than we are replacing them, and so, we have fallen behind the curve. We need to add 1 expansion vehicle to include 1 25' LTV. | H5: 78026 | I5: 7802 | J5: 7803 | K5: 62421 | L5: Upper Coastal Plain RPO | M5: Johnston | O5: 4.46 | Q5: 0 | R5: 0 | S5: 15 | T5: 30 | U5: 11.25 | V5: 15.71 | Y5: Cost Too Low to Justify Use of Division Points
A6: T130100 | B6: Johnston Co fy17 expansion vehicle | C6: 4 | D6: Expansion Vehicle | E6: Expansion-Demand Response | F6: Division Needs | G6: JCATS currently operates a fleet of 31 vehicles. Due to increasing demand, our vehicles are wearing out at a faster rate than we are replacing them, and so, we have fallen behind the curve. We need to add 1 expansion vehicle to include a 25' LTV. | H6: 78033 | I6: 7806 | J6: 7806 | K6: 62421 | L6: Upper Coastal Plain RPO | M6: Johnston | O6: 4.46 | Q6: 0 | R6: 0 | S6: 15 | T6: 30 | U6: 11.25 | V6: 15.71 | Y6: Cost Too Low to Justify Use of Division Points
A7: T130101 | B7: Johnston Co fy18 expansion vehicle | C7: 4 | D7: Expansion Vehicle | E7: Expansion-Demand Response | F7: Division Needs | G7: JCATS currently operates a fleet of 31 vehicles. Due to increasing demand, our vehicles are wearing out at a faster rate than we are replacing them, and so, we have fallen behind the curve. We need to add 1 expansion vehicle to include a 25' LTV. | H7: 78027 | I7: 7803 | J7: 7803 | K7: 62421 | L7: Upper Coastal Plain RPO | M7: Johnston | O7: 4.24 | Q7: 0 | R7: 0 | S7: 15 | T7: 30 | U7: 11.25 | V7: 15.49 | Y7: Cost Too Low to Justify Use of Division Points
